Workbook

Sheet Titulní
C1: ČESKÉ VYSOKÉ UČENÍ TECHNICKÉ
C2: FAKULTA STAVEBNÍ
C3: Management a ekonomika ve stavebnictví
C6: 1
C7: 8
C19: Výběr dodavatele podpůrných služeb
A23: Město
A24: Služba
A25: Množství | B25: 100 | C25: =VLOOKUP(Tabulky!C4,Tabulky!A7:D14,4,0) -> m2
A26: Cena za km | B26: 25 | C26: Kč/km
A28: Firmy:
B29: Název poskytovatele | D29: RPM Service CZ a.s.
B30: Město | D30: Praha
B31: Ulice | D31: Moskevská 63/659
B32: PSČ | D32: 101 16
B33: Telefon | D33: 272 099 600
B34: E-mail | D34: obchod@rpmservice.cz
B35: www | D35: www.rpmservice.cz
B36: Vydálenost [km] | D36: 6.3
B37: ="Cena za jednotku ["&VLOOKUP(Tabulky!C4,Tabulky!A7:C14,3,0)&"]" -> Cena za jednotku [Kč/m2] | D37: 6
B38: Cena služby [Kč] | D38: 600
B39: Cena dopravy [Kč] | D39: 157.5
B40: Celková cena [Kč] | D40: 757.5

Sheet Seznam firem
A1: ID | C1: Název poskytovatele | D1: Město | E1: Ulice | F1: PSČ | G1: Telefon | H1: E-mail | I1: HTTP | J1: Vzdálenost | K1: Mytí obkladů | L1: Mytí oken a výloh | M1: Revize hasících přístrojů | N1: Revize výtahů | O1: Revize vzduchotechniky | P1: Security služby | Q1: Úklid podlah | R1: Úklid sněhu | S1: Praha | T1: Plzeň | U1: Příbram | V1: Liberec | W1: České Budejovice | X1: Tábor | Y1: Kladno | Z1: Mladá boleslav | AA1: Hradec králové | AB1: Celková cena
A2: 1 | C2: COOL Facillity s.r.o. | D2: Praha | E2: Švábky 52 | F2: 180 00 | G2: 777790005 | H2: info@completeservice.cz | I2: www.completeservice.cz | J2: =VLOOKUP(A2,A2:AA2,18+Tabulky!$C$3) -> 8 | K2: 40 | L2: 6 | Q2: 2 | S2: 8 | T2: 105 | U2: 68.5 | V2: 106 | W2: 155 | X2: 96.3 | Y2: 31 | Z2: 60 | AA2: 114 | AB2: =IF(VLOOKUP(A2,A2:AA2,10+Tabulky!$C$4)="","",J2*Titulní!$B$26+VLOOKUP(A2,A2:AA2,10+Tabulky!$C$4)*Titulní!$B$25) -> 800
A3: 2 | C3: Úklidové služby | D3: Praha | E3: V Nových Vokovicích 149 | F3: 160 00 | G3: 602238073 | H3: www.uklidovesluzby.cz | I3: www.uklidovesluzby.cz | J3: =VLOOKUP(A3,A3:AA3,18+Tabulky!$C$3) -> 8.5 | K3: 35 | L3: 8 | Q3: 2.5 | S3: 8.5 | T3: 95 | U3: 71 | V3: 114 | W3: 164 | X3: 102 | Y3: 21 | Z3: 68 | AA3: 128 | AB3: =IF(VLOOKUP(A3,A3:AA3,10+Tabulky!$C$4)="","",J3*Titulní!$B$26+VLOOKUP(A3,A3:AA3,10+Tabulky!$C$4)*Titulní!$B$25) -> 1012.5
A4: 3 | C4: EuroProfi Clean v.o.s | D4: Praha | E4: Cílkova 639/24 | F4: 142 00 | G4: 777595854 | H4: epc@europroficlean.cz | I4: www.europroficlean.cz | J4: =VLOOKUP(A4,A4:AA4,18+Tabulky!$C$3) -> 10.3 | K4: 30 | L4: 11 | Q4: 1.7 | S4: 10.3 | T4: 98 | U4: 57 | V4: 112 | W4: 103 | X4: 89 | Y4: 44 | Z4: 66 | AA4: 116 | AB4: =IF(VLOOKUP(A4,A4:AA4,10+Tabulky!$C$4)="","",J4*Titulní!$B$26+VLOOKUP(A4,A4:AA4,10+Tabulky!$C$4)*Titulní!$B$25) -> 1357.5
A5: 4 | C5: Ksena.s.r.o. | D5: Praha | E5: Dářská 275/14 | F5: 198 00 | G5: 777595854 | H5: reditel.uklid@ksena.cz | I5: www.uklidove-prace-ksena.cz | J5: =VLOOKUP(A5,A5:AA5,18+Tabulky!$C$3) -> 19.5 | L5: 13 | Q5: 3 | S5: 19.5 | T5: 108 | U5: 70 | V5: 98 | W5: 153 | X5: 95 | Y5: 53 | Z5: 52 | AA5: 118 | AB5: =IF(VLOOKUP(A5,A5:AA5,10+Tabulky!$C$4)="","",J5*Titulní!$B$26+VLOOKUP(A5,A5:AA5,10+Tabulky!$C$4)*Titulní!$B$25) -> 1787.5
A6: 5 | C6: D&D s.r.o. | D6: Praha | E6: Výletní 398/27 | F6: 142 00 | G6: 244470604 | H6: info@ddservis.eu | I6: www.dd-uklid-praha.cz | J6: =VLOOKUP(A6,A6:AA6,18+Tabulky!$C$3) -> 11.8 | K6: 32 | L6: 10 | Q6: 2.5 | S6: 11.8 | T6: 103 | U6: 59 | V6: 113 | W6: 147 | X6: 88 | Y6: 48 | Z6: 67.5 | AA6: 117 | AB6: =IF(VLOOKUP(A6,A6:AA6,10+Tabulky!$C$4)="","",J6*Titulní!$B$26+VLOOKUP(A6,A6:AA6,10+Tabulky!$C$4)*Titulní!$B$25) -> 1295
A7: 6 | C7: DOLEŽAL-DUHA, s. r. o. | D7: Praha | E7: Podolská 241/23, | F7: 147 00 | G7: 733 640 206 | H7: info@duha.eu | I7: www.duha-uklid.cz | J7: =VLOOKUP(A7,A7:AA7,18+Tabulky!$C$3) -> 3.2 | L7: 12 | Q7: 3 | S7: 3.2 | T7: 96.5 | U7: 56 | V7: 113.5 | W7: 148 | X7: 90 | Y7: 42 | Z7: 66.7 | AA7: 116 | AB7: =IF(VLOOKUP(A7,A7:AA7,10+Tabulky!$C$4)="","",J7*Titulní!$B$26+VLOOKUP(A7,A7:AA7,10+Tabulky!$C$4)*Titulní!$B$25) -> 1280
A8: 7 | C8: David Plecitý | D8: Praha | E8: Dubnova 807 | F8: 149 00 | G8: 602332178 | H8: dplecity@volny.cz | I8: www.uklidplecity.cz | J8: =VLOOKUP(A8,A8:AA8,18+Tabulky!$C$3) -> 13.7 | L8: 10 | Q8: 8 | S8: 13.7 | T8: 102 | U8: 64.5 | V8: 107 | W8: 143 | X8: 84.6 | Y8: 48 | Z8: 61 | AA8: 111 | AB8: =IF(VLOOKUP(A8,A8:AA8,10+Tabulky!$C$4)="","",J8*Titulní!$B$26+VLOOKUP(A8,A8:AA8,10+Tabulky!$C$4)*Titulní!$B$25) -> 1342.5
A9: 8 | C9: A.W.I.S. | D9: Praha | E9: Na Plzeňce 1236/4 | F9: 150 00 | G9: 222531104 | H9: info@uklidy-kancelari.cz | I9: www.uklidy-kancelari.cz | J9: =VLOOKUP(A9,A9:AA9,18+Tabulky!$C$3) -> 1 | L9: 12 | Q9: 7 | R9: 5 | S9: 1 | T9: 95.1 | U9: 57.7 | V9: 116 | W9: 152 | X9: 94 | Y9: 40.7 | Z9: 70.5 | AA9: 120 | AB9: =IF(VLOOKUP(A9,A9:AA9,10+Tabulky!$C$4)="","",J9*Titulní!$B$26+VLOOKUP(A9,A9:AA9,10+Tabulky!$C$4)*Titulní!$B$25) -> 1225
A10: 9 | C10: Herakles | D10: Praha | E10: Marie Cibulkové 14 | F10: 140 00 | G10: 222934038 | H10: jirisvatek.herakles@seznam.cz | I10: www.adherakles.cz | J10: =VLOOKUP(A10,A10:AA10,18+Tabulky!$C$3) -> 3.7 | K10: 38 | L10: 8 | Q10: 2.8 | R10: 3 | S10: 3.7 | T10: 97.2 | U10: 60 | V10: 112 | W10: 148 | X10: 89.9 | Y10: 43 | Z10: 66.7 | AA10: 116 | AB10: =IF(VLOOKUP(A10,A10:AA10,10+Tabulky!$C$4)="","",J10*Titulní!$B$26+VLOOKUP(A10,A10:AA10,10+Tabulky!$C$4)*Titulní!$B$25) -> 892.5
A11: 10 | C11: VYČISTÍM CZ | D11: Praha | E11: Zborovská 4 | F11: 150 00 | G11: 606741841 | H11: info@vycistim.cz | I11: www.vycistim.cz | J11: =VLOOKUP(A11,A11:AA11,18+Tabulky!$C$3) -> 0.5 | K11: 70 | L11: 14 | Q11: 4 | S11: 0.5 | T11: 90.6 | U11: 58 | V11: 117 | W11: 153 | X11: 94 | Y11: 32 | Z11: 71 | AA11: 121 | AB11: =IF(VLOOKUP(A11,A11:AA11,10+Tabulky!$C$4)="","",J11*Titulní!$B$26+VLOOKUP(A11,A11:AA11,10+Tabulky!$C$4)*Titulní!$B$25) -> 1412.5
A12: 11 | C12: Mytí oken s.r.o. | D12: Praha | E12: Na Harfě 7 | F12: 198 00 | G12: 603232515 | H12: uklid@mytioken.cz | I12: www.mytioken.cz | J12: =VLOOKUP(A12,A12:AA12,18+Tabulky!$C$3) -> 10.7 | L12: 8 | S12: 10.7 | T12: 111 | U12: 73 | V12: 101 | W12: 156 | X12: 97.6 | Y12: 34.7 | Z12: 54 | AA12: 106 | AB12: =IF(VLOOKUP(A12,A12:AA12,10+Tabulky!$C$4)="","",J12*Titulní!$B$26+VLOOKUP(A12,A12:AA12,10+Tabulky!$C$4)*Titulní!$B$25) -> 1067.5
A13: 12 | C13: Úklidová četa | D13: Praha | E13: Jičínská 37 | F13: 130 00 | G13: 608947845 | H13: info@uklidovaceta.cz | I13: www.uklidovaceta.cz | J13: =VLOOKUP(A13,A13:AA13,18+Tabulky!$C$3) -> 5.7 | L13: 15 | Q13: 2.9 | S13: 5.7 | T13: 104 | U13: 66.5 | V13: 106 | W13: 149 | X13: 90.4 | Y13: 31.8 | Z13: 60.8 | AA13: 112 | AB13: =IF(VLOOKUP(A13,A13:AA13,10+Tabulky!$C$4)="","",J13*Titulní!$B$26+VLOOKUP(A13,A13:AA13,10+Tabulky!$C$4)*Titulní!$B$25) -> 1642.5
A14: 13 | C14: AB Prokir spol. s r.o. | D14: Praha | E14: Magistrů 921/9 | F14: 140 00 | G14: 602332948 | H14: prokir@prokir.cz | I14: www.prokir.cz | J14: =VLOOKUP(A14,A14:AA14,18+Tabulky!$C$3) -> 5.5 | L14: 9.5 | Q14: 10 | S14: 5.5 | T14: 100 | U14: 62.7 | V14: 109 | W14: 147 | X14: 88.5 | Y14: 43.7 | Z14: 63.4 | AA14: 113 | AB14: =IF(VLOOKUP(A14,A14:AA14,10+Tabulky!$C$4)="","",J14*Titulní!$B$26+VLOOKUP(A14,A14:AA14,10+Tabulky!$C$4)*Titulní!$B$25) -> 1087.5
A15: 14 | C15: RPM Service CZ a.s. | D15: Praha | E15: Moskevská 63/659 | F15: 101 16 | G15: 272 099 600 | H15: obchod@rpmservice.cz | I15: www.rpmservice.cz | J15: =VLOOKUP(A15,A15:AA15,18+Tabulky!$C$3) -> 6.3 | L15: 6 | Q15: 2 | S15: 6.3 | T15: 101 | U15: 63.9 | V15: 108 | W15: 146 | X15: 87.5 | Y15: 47 | Z15: 62.8 | AA15: 112.5 | AB15: =IF(VLOOKUP(A15,A15:AA15,10+Tabulky!$C$4)="","",J15*Titulní!$B$26+VLOOKUP(A15,A15:AA15,10+Tabulky!$C$4)*Titulní!$B$25) -> 757.5
A16: 15 | C16: Detai cleaning | D16: Praha | E16: Tovarova 1211 | F16: 198 00 | G16: 777926300 | H16: info@detai.cz | I16: www.detai.cz | J16: =VLOOKUP(A16,A16:AA16,18+Tabulky!$C$3) -> 21.3 | R16: 13 | S16: 21.3 | T16: 110 | U16: 72.8 | V16: 100 | W16: 155 | X16: 97 | Y16: 56 | Z16: 145 | AA16: 104 | AB16: =IF(VLOOKUP(A16,A16:AA16,10+Tabulky!$C$4)="","",J16*Titulní!$B$26+VLOOKUP(A16,A16:AA16,10+Tabulky!$C$4)*Titulní!$B$25) -> 
A17: 16 | C17: Komplexní úklid | D17: Praha | E17: Šatrova 662 | F17: 14200 | G17: 603444507 | H17: info@komplexni-uklid.cz | I17: www.komplexni-uklid.cz | J17: =VLOOKUP(A17,A17:AA17,18+Tabulky!$C$3) -> 10.4 | R17: 7 | S17: 10.4 | T17: 99.5 | U17: 57.5 | V17: 113 | W17: 149 | X17: 90.3 | Y17: 43 | Z17: 66.8 | AA17: 116 | AB17: =IF(VLOOKUP(A17,A17:AA17,10+Tabulky!$C$4)="","",J17*Titulní!$B$26+VLOOKUP(A17,A17:AA17,10+Tabulky!$C$4)*Titulní!$B$25) -> 
A18: 17 | C18: Dopareal | D18: Praha | E18: Poznaňská 435 | F18: 18100 | G18: 604946096 | H18: dopareal@gmail.com | I18: www.dopareal.cz | J18: =VLOOKUP(A18,A18:AA18,18+Tabulky!$C$3) -> 13.4 | R18: 8 | S18: 13.4 | T18: 99 | U18: 71 | V18: 108 | W18: 159 | X18: 100 | Y18: 33.5 | Z18: 62 | AA18: 116 | AB18: =IF(VLOOKUP(A18,A18:AA18,10+Tabulky!$C$4)="","",J18*Titulní!$B$26+VLOOKUP(A18,A18:AA18,10+Tabulky!$C$4)*Titulní!$B$25) -> 
A19: 18 | C19: Šticha a syn s.r.o. | D19: Praha | E19: Choceradská 3044 | F19: 141 00 | G19: 777 844 726 | H19: info@stichaasyn.cz | I19: www.stichaasyn.cz | J19: =VLOOKUP(A19,A19:AA19,18+Tabulky!$C$3) -> 11.5 | R19: 2.4 | S19: 11.5 | T19: 100 | U19: 63 | V19: 108.5 | W19: 144 | X19: 85.4 | Y19: 44 | Z19: 62.4 | AA19: 112 | AB19: =IF(VLOOKUP(A19,A19:AA19,10+Tabulky!$C$4)="","",J19*Titulní!$B$26+VLOOKUP(A19,A19:AA19,10+Tabulky!$C$4)*Titulní!$B$25) -> 
A20: 19 | C20: Miroslav Mlezviva | D20: Kladno | E20: Smetanova 284 | F20: 273 45 | G20: 725 370 545 | H20: miloslav.mleziva@uklidmleziva.cz | I20: www.uklidmleziva.cz | J20: =VLOOKUP(A20,A20:AA20,18+Tabulky!$C$3) -> 26.8 | R20: 5 | S20: 26.8 | T20: 83 | U20: 81.4 | V20: 147 | W20: 175 | X20: 123 | Y20: 1.9 | Z20: 101 | AA20: 150 | AB20: =IF(VLOOKUP(A20,A20:AA20,10+Tabulky!$C$4)="","",J20*Titulní!$B$26+VLOOKUP(A20,A20:AA20,10+Tabulky!$C$4)*Titulní!$B$25) -> 
A21: 20 | C21: RP Security | D21: Praha | E21: Plavecká 8 | F21: 128 00 | G21: 774 676 665 | H21: info@rp-security.cz | I21: www.rp-security.cz | J21: =VLOOKUP(A21,A21:AA21,18+Tabulky!$C$3) -> 2.1 | P21: 85 | S21: 2.1 | T21: 91 | U21: 60.3 | V21: 111 | W21: 150 | X21: 91.3 | Y21: 32 | Z21: 66.5 | AA21: 117 | AB21: =IF(VLOOKUP(A21,A21:AA21,10+Tabulky!$C$4)="","",J21*Titulní!$B$26+VLOOKUP(A21,A21:AA21,10+Tabulky!$C$4)*Titulní!$B$25) -> 
A22: 21 | C22: S a S security service, s.r.o. | D22: Praha | E22: Ke Klimentce 15 | F22: 150 00 | G22: 257225555 | H22: sas@sassecurity.cz | I22: www.sassecurity.cz | J22: =VLOOKUP(A22,A22:AA22,18+Tabulky!$C$3) -> 5.5 | P22: 103 | S22: 5.5 | T22: 86.9 | U22: 60.9 | V22: 119 | W22: 156 | X22: 97.3 | Y22: 28.6 | Z22: 73.7 | AA22: 123 | AB22: =IF(VLOOKUP(A22,A22:AA22,10+Tabulky!$C$4)="","",J22*Titulní!$B$26+VLOOKUP(A22,A22:AA22,10+Tabulky!$C$4)*Titulní!$B$25) -> 
A23: 22 | C23: Security Cihlář | D23: Praha | E23: Polední 1029/29 | F23: 147 00 | G23: 774881892 | H23: security-cihlar@email.cz | I23: www.security-cihlar.cz | J23: =VLOOKUP(A23,A23:AA23,18+Tabulky!$C$3) -> 6.9 | P23: 150 | S23: 6.9 | T23: 95.9 | U23: 58.5 | V23: 113 | W23: 149 | X23: 90.4 | Y23: 41.5 | Z23: 67 | AA23: 116 | AB23: =IF(VLOOKUP(A23,A23:AA23,10+Tabulky!$C$4)="","",J23*Titulní!$B$26+VLOOKUP(A23,A23:AA23,10+Tabulky!$C$4)*Titulní!$B$25) -> 
A24: 23 | C24: RTH Security s.r.o. | D24: Praha | E24: Jaurisova 4 | F24: 140 00 | G24: 261213712 | H24: obchod@rthgroup.cz | I24: www.rthgroup.cz | J24: =VLOOKUP(A24,A24:AA24,18+Tabulky!$C$3) -> 5.1 | P24: 125 | S24: 5.1 | T24: 100 | U24: 62.8 | V24: 110 | W24: 147 | X24: 89 | Y24: 43.8 | Z24: 63.9 | AA24: 113 | AB24: =IF(VLOOKUP(A24,A24:AA24,10+Tabulky!$C$4)="","",J24*Titulní!$B$26+VLOOKUP(A24,A24:AA24,10+Tabulky!$C$4)*Titulní!$B$25) -> 
A25: 24 | C25: CBS PROFESIONAL security agency, a.s. | D25: Praha | E25: Na Rovnosti 2245/3 | F25: 130 00 | G25: 242441476 | H25: info@cbs.cz | I25: www.cbs.cz | J25: =VLOOKUP(A25,A25:AA25,18+Tabulky!$C$3) -> 8.5 | P25: 90 | S25: 8.5 | T25: 63.9 | U25: 65.8 | V25: 104 | W25: 150 | X25: 91.9 | Y25: 33.9 | Z25: 58.9 | AA25: 110 | AB25: =IF(VLOOKUP(A25,A25:AA25,10+Tabulky!$C$4)="","",J25*Titulní!$B$26+VLOOKUP(A25,A25:AA25,10+Tabulky!$C$4)*Titulní!$B$25) -> 
A26: 25 | C26: V.I.P. SECURITY SERVICES s.r.o. | D26: Praha | E26: Za Elektrárnou 419 | F26: 170 00 | G26: 266727468 | H26: info@prague-security.cz | I26: www.prague-security.cz | J26: =VLOOKUP(A26,A26:AA26,18+Tabulky!$C$3) -> 6.6 | P26: 180 | S26: 6.6 | T26: 94.5 | U26: 65.6 | V26: 107 | W26: 153 | X26: 94.7 | Y26: 28.1 | Z26: 61.1 | AA26: 115 | AB26: =IF(VLOOKUP(A26,A26:AA26,10+Tabulky!$C$4)="","",J26*Titulní!$B$26+VLOOKUP(A26,A26:AA26,10+Tabulky!$C$4)*Titulní!$B$25) -> 
A27: 26 | C27: INUS Příbram s.r.o. | D27: Příbram | E27: Příbram VII, nám.17.listopadu 65 | F27: 261 01 | G27: 318628055 | H27: inus@inus.cz inusuklid@volny.cz | I27: http://inus.cz/ | J27: =VLOOKUP(A27,A27:AA27,18+Tabulky!$C$3) -> 59 | L27: 6 | Q27: 10 | S27: 59 | T27: 60.5 | U27: 1.2 | V27: 169 | W27: 100 | X27: 70 | Y27: 87.9 | Z27: 123 | AA27: 173 | AB27: =IF(VLOOKUP(A27,A27:AA27,10+Tabulky!$C$4)="","",J27*Titulní!$B$26+VLOOKUP(A27,A27:AA27,10+Tabulky!$C$4)*Titulní!$B$25) -> 2075
A28: 27 | C28: Gabriela Zetochová | D28: Příbram | E28: Hanuše Jelínka 612 | F28: 261 01 | G28: 607 768 178 | H28: uklidzetochova@seznam.cz | J28: =VLOOKUP(A28,A28:AA28,18+Tabulky!$C$3) -> 61 | L28: 12 | S28: 61 | T28: 61 | U28: 1.8 | V28: 172 | W28: 102 | X28: 69.5 | Y28: 86 | Z28: 125 | AA28: 175 | AB28: =IF(VLOOKUP(A28,A28:AA28,10+Tabulky!$C$4)="","",J28*Titulní!$B$26+VLOOKUP(A28,A28:AA28,10+Tabulky!$C$4)*Titulní!$B$25) -> 2725
A29: 28 | C29: Vanost s.r.o. | D29: Příbram | E29: Okružní 209 | F29: 261 02 | G29: 313 771 058 | H29: vanost@vanost.cz | I29: http://www.vanost.cz/ | J29: =VLOOKUP(A29,A29:AA29,18+Tabulky!$C$3) -> 60.3 | L29: 13 | Q29: 19 | S29: 60.3 | T29: 60.2 | U29: 1.6 | V29: 168.9 | W29: 101.5 | X29: 70.3 | Y29: 85 | Z29: 127 | AA29: 179 | AB29: =IF(VLOOKUP(A29,A29:AA29,10+Tabulky!$C$4)="","",J29*Titulní!$B$26+VLOOKUP(A29,A29:AA29,10+Tabulky!$C$4)*Titulní!$B$25) -> 2807.5
A30: 29 | C30: ALEŠ ZEMAN-úklidové práce | D30: Kladno | E30: Poděbradova 3213 | F30: 272 01 | G30: 608147779 | H30: uklid.zeman@volny.cz | I30: www.uklidove-firmy-az.estranky.cz | J30: =VLOOKUP(A30,A30:AA30,18+Tabulky!$C$3) -> 32 | L30: 16 | S30: 32 | T30: 85.3 | U30: 85.9 | V30: 151 | W30: 179 | X30: 128 | Y30: 1.1 | Z30: 106 | AA30: 155 | AB30: =IF(VLOOKUP(A30,A30:AA30,10+Tabulky!$C$4)="","",J30*Titulní!$B$26+VLOOKUP(A30,A30:AA30,10+Tabulky!$C$4)*Titulní!$B$25) -> 2400
A31: 30 | C31: Housekeeping s.r.o. | D31: Praha | E31: Naskové 3 | F31: 150 00 | G31: 605 885 842 | H31: info@house-keeping.cz | I31: www.house-keeping.cz | J31: =VLOOKUP(A31,A31:AA31,18+Tabulky!$C$3) -> 5 | K31: 40 | L31: 10 | R31: 10 | S31: 5 | T31: 88.6 | U31: 62.6 | V31: 121 | W31: 157 | X31: 98.9 | Y31: 31 | Z31: 75.4 | AA31: 125 | AB31: =IF(VLOOKUP(A31,A31:AA31,10+Tabulky!$C$4)="","",J31*Titulní!$B$26+VLOOKUP(A31,A31:AA31,10+Tabulky!$C$4)*Titulní!$B$25) -> 1125
A32: 31 | C32: Výtahy Kladno v.o.s | D32: Kladno | E32: Kročehlavská 1308 | F32: 272 01 | G32: 603718172 | H32: vytahy@vytahykladno.cz | I32: www.vytahykladno.cz | J32: =VLOOKUP(A32,A32:AA32,18+Tabulky!$C$3) -> 28.5 | N32: 350 | S32: 28.5 | T32: 91.4 | U32: 83.2 | V32: 149 | W32: 176 | X32: 125 | Y32: 2.2 | Z32: 1.3 | AA32: 152 | AB32: =IF(VLOOKUP(A32,A32:AA32,10+Tabulky!$C$4)="","",J32*Titulní!$B$26+VLOOKUP(A32,A32:AA32,10+Tabulky!$C$4)*Titulní!$B$25) -> 
A33: 32 | C33: HG-SECURITY spol. s r.o. | D33: Praha | E33: Chudenická 30/1059 | F33: 102 00 | G33: 733121587 | H33: hg-security@centrum.cz | I33: http://www.hg-security.cz/ | J33: =VLOOKUP(A33,A33:AA33,18+Tabulky!$C$3) -> 14.2 | P33: 90 | S33: 14.2 | T33: 103 | U33: 64.4 | V33: 107 | W33: 144 | X33: 85.3 | Y33: 46.6 | Z33: 61.5 | AA33: 111 | AB33: =IF(VLOOKUP(A33,A33:AA33,10+Tabulky!$C$4)="","",J33*Titulní!$B$26+VLOOKUP(A33,A33:AA33,10+Tabulky!$C$4)*Titulní!$B$25) -> 
A34: 33 | C34: F.D.A. SECURITY | D34: Boskovice | E34: Ludvíka Vojtěcha 80 | F34: 680 01 | G34: 516453965 | H34: office@fda-security.cz | I34: http://www.fda-security.cz/ | J34: =VLOOKUP(A34,A34:AA34,18+Tabulky!$C$3) -> 225 | P34: 75 | S34: 225 | T34: 336 | U34: 292 | V34: 210 | W34: 253 | X34: 204 | Y34: 282 | Z34: 208 | AA34: 113 | AB34: =IF(VLOOKUP(A34,A34:AA34,10+Tabulky!$C$4)="","",J34*Titulní!$B$26+VLOOKUP(A34,A34:AA34,10+Tabulky!$C$4)*Titulní!$B$25) -> 
A35: 34 | C35: OMEGA SECURITY s.r.o. | D35: Plzeň | E35: Slovanská tř. 80, | F35: 326 00 | G35: 377456668 | H35: omegasecurity@seznam.cz | I35: http://www.omegasecurity.cz/ | J35: =VLOOKUP(A35,A35:AA35,18+Tabulky!$C$3) -> 99 | P35: 75 | S35: 99 | T35: 3.1 | U35: 59.6 | V35: 206 | W35: 132 | X35: 113 | Y35: 105 | Z35: 160 | AA35: 210 | AB35: =IF(VLOOKUP(A35,A35:AA35,10+Tabulky!$C$4)="","",J35*Titulní!$B$26+VLOOKUP(A35,A35:AA35,10+Tabulky!$C$4)*Titulní!$B$25) -> 
A36: 35 | C36: IBEX Security s.r.o. | D36: Šilheřovice | E36: Květinová 397 | F36: 747 15 | G36: 724 200 958 | H36: info@ibex-sbs.cz | I36: http://www.ibex-sbs.cz/ | J36: =VLOOKUP(A36,A36:AA36,18+Tabulky!$C$3) -> 390 | P36: 85 | S36: 390 | T36: 476 | U36: 445 | V36: 349 | W36: 394 | X36: 344 | Y36: 422 | Z36: 347 | AA36: 252 | AB36: =IF(VLOOKUP(A36,A36:AA36,10+Tabulky!$C$4)="","",J36*Titulní!$B$26+VLOOKUP(A36,A36:AA36,10+Tabulky!$C$4)*Titulní!$B$25) -> 
A37: 36 | C37: Security service | D37: Praha | E37: Dopravní 500 | F37: 14000 | G37: 606728321 | H37: michal.krejcik@email.cz | I37: www.security.wbs.cz | J37: =VLOOKUP(A37,A37:AA37,18+Tabulky!$C$3) -> 20.5 | P37: 105 | S37: 20.5 | T37: 117 | U37: 74 | V37: 104 | W37: 141 | X37: 82.3 | Y37: 61.3 | Z37: 58.6 | AA37: 108 | AB37: =IF(VLOOKUP(A37,A37:AA37,10+Tabulky!$C$4)="","",J37*Titulní!$B$26+VLOOKUP(A37,A37:AA37,10+Tabulky!$C$4)*Titulní!$B$25) -> 
A38: 37 | C38: SvoboDo | D38: Plzeň | E38: Vochov 58 | F38: 330 23 | G38: 602 414 085 | H38: Zdenek.SvobodaSvobodo@seznam.cz | I38: http://www.uklidovesluzbyplzen.cz | J38: =VLOOKUP(A38,A38:AA38,18+Tabulky!$C$3) -> 110 | K38: 30 | L38: 14 | Q38: 6 | S38: 110 | T38: 9.5 | U38: 76.5 | V38: 226 | W38: 149 | X38: 131 | Y38: 125 | Z38: 180 | AA38: 229 | AB38: =IF(VLOOKUP(A38,A38:AA38,10+Tabulky!$C$4)="","",J38*Titulní!$B$26+VLOOKUP(A38,A38:AA38,10+Tabulky!$C$4)*Titulní!$B$25) -> 4150
A39: 38 | C39: Uklid-udrzba-plzen | D39: Plzeň | G39: 774571813 | H39: b.bartak@seznam.cz | I39: http://uklid-udrzba-plzen.webnode.cz/ | J39: =VLOOKUP(A39,A39:AA39,18+Tabulky!$C$3) -> 105 | K39: 40 | L39: 5.5 | Q39: 12 | S39: 105 | T39: 1.2 | U39: 78 | V39: 224.6 | W39: 153 | X39: 134 | Y39: 122 | Z39: 183.5 | AA39: 228.5 | AB39: =IF(VLOOKUP(A39,A39:AA39,10+Tabulky!$C$4)="","",J39*Titulní!$B$26+VLOOKUP(A39,A39:AA39,10+Tabulky!$C$4)*Titulní!$B$25) -> 3175
A40: 39 | C40: TDT servis výtahů | D40: Praha | E40: Šimáčkova 8 | F40: 170 00 | G40: 775619908 | H40: tdt-vytahy@seznam.cz | I40: http://www.tdt.wz.cz/ | J40: =VLOOKUP(A40,A40:AA40,18+Tabulky!$C$3) -> 6.1 | N40: 360 | S40: 6.1 | T40: 94.2 | U40: 65.5 | V40: 107 | W40: 153 | X40: 94.4 | Y40: 27.9 | Z40: 61 | AA40: 115 | AB40: =IF(VLOOKUP(A40,A40:AA40,10+Tabulky!$C$4)="","",J40*Titulní!$B$26+VLOOKUP(A40,A40:AA40,10+Tabulky!$C$4)*Titulní!$B$25) -> 
A41: 40 | C41: Bezpo | D41: Plzeň | E41: Hřímalého 805/3 | F41: 301 00 | G41: 602104471 | H41: bezpoplzen@seznam.cz | I41: http://www.bezpo.com/ | J41: =VLOOKUP(A41,A41:AA41,18+Tabulky!$C$3) -> 91 | M41: 40 | S41: 91 | T41: 0.9 | U41: 65.8 | V41: 205 | W41: 138 | X41: 120 | Y41: 104 | Z41: 159 | AA41: 209 | AB41: =IF(VLOOKUP(A41,A41:AA41,10+Tabulky!$C$4)="","",J41*Titulní!$B$26+VLOOKUP(A41,A41:AA41,10+Tabulky!$C$4)*Titulní!$B$25) -> 
A42: 41 | C42: Jaroslav Vidim | D42: Velvary | E42: Malovarská 387 | F42: 273 24 | G42: 733139577 | H42: info@hasici-pristroje.net | I42: http://www.hasici-pristroje.net/ | J42: =VLOOKUP(A42,A42:AA42,18+Tabulky!$C$3) -> 45 | M42: 49 | S42: 45 | T42: 104 | U42: 81.6 | V42: 100 | W42: 174 | X42: 116 | Y42: 20.3 | Z42: 60.7 | AA42: 142 | AB42: =IF(VLOOKUP(A42,A42:AA42,10+Tabulky!$C$4)="","",J42*Titulní!$B$26+VLOOKUP(A42,A42:AA42,10+Tabulky!$C$4)*Titulní!$B$25) -> 
A43: 42 | C43: Karel Hrbek | D43: Praha | E43: Černošice | F43: 252 28 | G43: 777312705 | H43: technikpo@technikpo.cz | I43: http://www.technikpo.cz/ | J43: =VLOOKUP(A43,A43:AA43,18+Tabulky!$C$3) -> 16.5 | M43: 40 | S43: 16.5 | T43: 83.8 | U43: 51.1 | V43: 126 | W43: 144 | X43: 99.4 | Y43: 39 | Z43: 80.6 | AA43: 130 | AB43: =IF(VLOOKUP(A43,A43:AA43,10+Tabulky!$C$4)="","",J43*Titulní!$B$26+VLOOKUP(A43,A43:AA43,10+Tabulky!$C$4)*Titulní!$B$25) -> 
A44: 43 | C44: SLÁDEČEK PAVEL | D44: Opatovice nad Labem | E44: Jozífova 377 | F44: 533 45 | G44: 603972288 | H44: hasici-pristroje-sladecek@seznam.cz | I44: http://www.hasici-pristroje-sladecek.stranky1.cz/ | J44: =VLOOKUP(A44,A44:AA44,18+Tabulky!$C$3) -> 114 | M44: 40 | S44: 114 | T44: 203 | U44: 165 | V44: 140 | W44: 248 | X44: 189 | Y44: 148 | Z44: 94.7 | AA44: 9.3 | AB44: =IF(VLOOKUP(A44,A44:AA44,10+Tabulky!$C$4)="","",J44*Titulní!$B$26+VLOOKUP(A44,A44:AA44,10+Tabulky!$C$4)*Titulní!$B$25) -> 
A45: 44 | C45: AGROS | D45: Praha | E45: Bojasova 1245 | F45: 18200 | G45: 606950976 | H45: argos.zvara@seznam.cz | I45: http://www.argos-pozarniservis.cz/ | J45: =VLOOKUP(A45,A45:AA45,18+Tabulky!$C$3) -> 13.7 | M45: 60 | S45: 13.7 | T45: 100 | U45: 71.5 | V45: 104 | W45: 160 | X45: 102 | Y45: 33.5 | Z45: 58.9 | AA45: 112 | AB45: =IF(VLOOKUP(A45,A45:AA45,10+Tabulky!$C$4)="","",J45*Titulní!$B$26+VLOOKUP(A45,A45:AA45,10+Tabulky!$C$4)*Titulní!$B$25) -> 
A46: 45 | C46: AHAS-PROFI | D46: Hluboká nad Vltavou | E46: Zvolenovská 536 | F46: 371 43 | G46: 775413089 | H46: ahas-profi@seznam.cz | I46: http://www.ahas-profi.cz/ | J46: =VLOOKUP(A46,A46:AA46,18+Tabulky!$C$3) -> 146 | M46: 45 | S46: 146 | T46: 130 | U46: 95 | V46: 249 | W46: 9.5 | X46: 59.9 | Y46: 174 | Z46: 204 | AA46: 253 | AB46: =IF(VLOOKUP(A46,A46:AA46,10+Tabulky!$C$4)="","",J46*Titulní!$B$26+VLOOKUP(A46,A46:AA46,10+Tabulky!$C$4)*Titulní!$B$25) -> 
A47: 46 | C47: Požární revize | D47: Praha | E47: Kurzova 2391/9 | F47: 155 00 | G47: 776638919 | H47: matyaskalenda@pozarni-prevence.eu | I47: http://www.pozarni-revize.eu/ | J47: =VLOOKUP(A47,A47:AA47,18+Tabulky!$C$3) -> 8.1 | M47: 40 | S47: 8.1 | T47: 85.4 | U47: 64.7 | V47: 123 | W47: 158 | X47: 107 | Y47: 31 | Z47: 77.5 | AA47: 127 | AB47: =IF(VLOOKUP(A47,A47:AA47,10+Tabulky!$C$4)="","",J47*Titulní!$B$26+VLOOKUP(A47,A47:AA47,10+Tabulky!$C$4)*Titulní!$B$25) -> 
A48: 47 | C48: Hlavní báňská záchranná stanice Praha a.s. | D48: Praha | E48: Za opravnou 276/8 | F48: 151 23 | G48: 257 282 701 | H48: hbzs@hbzs-praha.cz | I48: http://www.hbzs-praha.cz/ | J48: =VLOOKUP(A48,A48:AA48,18+Tabulky!$C$3) -> 6 | M48: 30 | S48: 6 | T48: 83.9 | U48: 67 | V48: 122 | W48: 155 | X48: 109 | Y48: 26.2 | Z48: 76.2 | AA48: 126 | AB48: =IF(VLOOKUP(A48,A48:AA48,10+Tabulky!$C$4)="","",J48*Titulní!$B$26+VLOOKUP(A48,A48:AA48,10+Tabulky!$C$4)*Titulní!$B$25) -> 
A49: 48 | C49: I.C.C.LIFT s.r.o. | D49: Stříbro | E49: 5.května 616 | F49: 34901 | G49: 722194974 | H49: info.icclift@gmail.com | I49: www.icclift.com | J49: =VLOOKUP(A49,A49:AA49,18+Tabulky!$C$3) -> 128 | N49: 350 | S49: 128 | T49: 36 | U49: 93 | V49: 243 | W49: 166 | X49: 148 | Y49: 142 | Z49: 197 | AA49: 247 | AB49: =IF(VLOOKUP(A49,A49:AA49,10+Tabulky!$C$4)="","",J49*Titulní!$B$26+VLOOKUP(A49,A49:AA49,10+Tabulky!$C$4)*Titulní!$B$25) -> 
A50: 49 | C50: ÚKLID-PLZEŇ.EU | D50: Mýto | E50: Těškovská 625 | F50: 338 05 | G50: 608531117 | H50: info@uklid-plzen.eu | I50: http://www.uklid-plzen.eu/ | J50: =VLOOKUP(A50,A50:AA50,18+Tabulky!$C$3) -> 92 | L50: 15 | N50: 350 | Q50: 4 | S50: 92 | T50: 29 | U50: 45.8 | V50: 178 | W50: 132 | X50: 155 | Y50: 74.9 | Z50: 132 | AA50: 182 | AB50: =IF(VLOOKUP(A50,A50:AA50,10+Tabulky!$C$4)="","",J50*Titulní!$B$26+VLOOKUP(A50,A50:AA50,10+Tabulky!$C$4)*Titulní!$B$25) -> 3800
A51: 50 | C51: Úklidové služby Plzeň | D51: Plzeň | E51: K Doubí 26 | F51: 312 00 | G51: 608 53 75 66 | H51: www.uklidovesluzby-plzen.cz | I51: http://www.uklidovesluzby-plzen.cz/ | J51: =VLOOKUP(A51,A51:AA51,18+Tabulky!$C$3) -> 85 | K51: 30 | L51: 14 | Q51: 4 | S51: 85 | T51: 9 | U51: 67.9 | V51: 200 | W51: 134 | X51: 111 | Y51: 98.8 | Z51: 154 | AA51: 204 | AB51: =IF(VLOOKUP(A51,A51:AA51,10+Tabulky!$C$4)="","",J51*Titulní!$B$26+VLOOKUP(A51,A51:AA51,10+Tabulky!$C$4)*Titulní!$B$25) -> 3525
A52: 51 | C52: ÚKLID PRESTO, s.r.o. | D52: Plzeň | E52: Šikmá 214/8 | F52: 318 00 | G52: 377385798 | H52: info@uklidpresto.cz | I52: http://www.uklidpresto.cz/ | J52: =VLOOKUP(A52,A52:AA52,18+Tabulky!$C$3) -> 105 | K52: 28 | L52: 16 | Q52: 11 | S52: 105 | T52: 6 | U52: 70.4 | V52: 220 | W52: 143 | X52: 125 | Y52: 118 | Z52: 174 | AA52: 223 | AB52: =IF(VLOOKUP(A52,A52:AA52,10+Tabulky!$C$4)="","",J52*Titulní!$B$26+VLOOKUP(A52,A52:AA52,10+Tabulky!$C$4)*Titulní!$B$25) -> 4225
A53: 52 | C53: KLIMATECH Praha spol. s r.o. | D53: Praha | E53: Škroupovo náměstí 10 | F53: 130 00 | G53: 222 725 204 | H53: klimatech@klimatech.cz | I53: http://www.klimatech.cz/ | J53: =VLOOKUP(A53,A53:AA53,18+Tabulky!$C$3) -> 5.1 | O53: 360 | S53: 5.1 | T53: 93.6 | U53: 62.8 | V53: 108 | W53: 150 | X53: 91.2 | Y53: 31.1 | Z53: 62.7 | AA53: 112 | AB53: =IF(VLOOKUP(A53,A53:AA53,10+Tabulky!$C$4)="","",J53*Titulní!$B$26+VLOOKUP(A53,A53:AA53,10+Tabulky!$C$4)*Titulní!$B$25) -> 
A54: 53 | C54: Výtahy Holý, s.r.o. | D54: Praha | E54: K Louži-2 | F54: 101 00 | G54: 732 782 588 | H54: info@vytahyholy.cz | I54: www.vytahyholy.cz | J54: =VLOOKUP(A54,A54:AA54,18+Tabulky!$C$3) -> 5.5 | N54: 380 | S54: 5.5 | T54: 94.5 | U54: 63.8 | V54: 109 | W54: 151.5 | X54: 93 | Y54: 32 | Z54: 61.5 | AA54: 112 | AB54: =IF(VLOOKUP(A54,A54:AA54,10+Tabulky!$C$4)="","",J54*Titulní!$B$26+VLOOKUP(A54,A54:AA54,10+Tabulky!$C$4)*Titulní!$B$25) -> 
A55: 54 | C55: BŘÍZA Výtahy s.r.o. | D55: Praha | E55: Českobrodská 72 | F55: 190 12 | G55: 777 251 659 | H55: info@briza-vytahy.cz | I55: http://www.briza-vytahy.cz/ | J55: =VLOOKUP(A55,A55:AA55,18+Tabulky!$C$3) -> 19.6 | N55: 365 | S55: 19.6 | T55: 109 | U55: 71 | V55: 98 | W55: 154 | X55: 95.3 | Y55: 54.2 | Z55: 52.8 | AA55: 102 | AB55: =IF(VLOOKUP(A55,A55:AA55,10+Tabulky!$C$4)="","",J55*Titulní!$B$26+VLOOKUP(A55,A55:AA55,10+Tabulky!$C$4)*Titulní!$B$25) -> 
A56: 55 | C56: NERA-lift, s.r.o. | D56: Praha | E56: U Továren 770/1b | F56: 102 00 | G56: 602699401 | H56: info@nera-lift.cz | I56: www.nera-lift.cz | J56: =VLOOKUP(A56,A56:AA56,18+Tabulky!$C$3) -> 17.1 | N56: 380 | S56: 17.1 | T56: 106 | U56: 68.5 | V56: 103 | W56: 147 | X56: 88.5 | Y56: 51.8 | Z56: 57.6 | AA56: 110 | AB56: =IF(VLOOKUP(A56,A56:AA56,10+Tabulky!$C$4)="","",J56*Titulní!$B$26+VLOOKUP(A56,A56:AA56,10+Tabulky!$C$4)*Titulní!$B$25) -> 
A57: 56 | C57: Bestlift, spol. s r.o. | D57: Praha | E57: Pražská 15, | F57: 251 64 | G57: 724971453 | H57: ivanka@bestlift.cz | I57: http://www.bestlift.cz/ | J57: =VLOOKUP(A57,A57:AA57,18+Tabulky!$C$3) -> 15.1 | N57: 355 | S57: 15.1 | T57: 104 | U57: 66.2 | V57: 104 | W57: 145 | X57: 86.5 | Y57: 49.7 | Z57: 58.6 | AA57: 108 | AB57: =IF(VLOOKUP(A57,A57:AA57,10+Tabulky!$C$4)="","",J57*Titulní!$B$26+VLOOKUP(A57,A57:AA57,10+Tabulky!$C$4)*Titulní!$B$25) -> 
A58: 57 | C58: Evyt s.r.o. | D58: Praha | E58: Klouzková 74 | F58: 104 00 | G58: 724 753 434 | H58: evyt@evyt.cz | I58: http://www.evyt.cz/ | J58: =VLOOKUP(A58,A58:AA58,18+Tabulky!$C$3) -> 20.2 | N58: 360 | S58: 20.2 | T58: 116 | U58: 71.8 | V58: 107 | W58: 139 | X58: 80.2 | Y58: 61.2 | Z58: 61.4 | AA58: 111 | AB58: =IF(VLOOKUP(A58,A58:AA58,10+Tabulky!$C$4)="","",J58*Titulní!$B$26+VLOOKUP(A58,A58:AA58,10+Tabulky!$C$4)*Titulní!$B$25) -> 
A59: 58 | C59: Elex s.r.o | D59: Plzeň | E59: U Hřbitova 24 | F59: 31830 | G59: 377389893 | H59: servis@vytahyelex.cz | I59: http://www.vytahyelex.cz/ | J59: =VLOOKUP(A59,A59:AA59,18+Tabulky!$C$3) -> 105 | N59: 360 | S59: 105 | T59: 4.7 | U59: 71.3 | V59: 220 | W59: 144 | X59: 125 | Y59: 119 | Z59: 175 | AA59: 224 | AB59: =IF(VLOOKUP(A59,A59:AA59,10+Tabulky!$C$4)="","",J59*Titulní!$B$26+VLOOKUP(A59,A59:AA59,10+Tabulky!$C$4)*Titulní!$B$25) -> 
A60: 59 | C60: VÝTAHY VOTO | D60: Plzeň | E60: Jateční 10 | F60: 301 00 | G60: 377183581 | H60: voto@vytahy-voto.cz | I60: http://www.vytahy-voto.cz/ | J60: =VLOOKUP(A60,A60:AA60,18+Tabulky!$C$3) -> 87 | N60: 370 | S60: 87 | T60: 3.7 | U60: 69 | V60: 202 | W60: 134 | X60: 116 | Y60: 101 | Z60: 157 | AA60: 206 | AB60: =IF(VLOOKUP(A60,A60:AA60,10+Tabulky!$C$4)="","",J60*Titulní!$B$26+VLOOKUP(A60,A60:AA60,10+Tabulky!$C$4)*Titulní!$B$25) -> 
A61: 60 | C61: EXPRESS ELEVATORS S.R.O. | D61: Praha | E61: Chodovická 2279 | F61: 193 00 | G61: 603546098 | H61: info@e-elevators.cz | I61: http://www.e-elevators.cz/ | J61: =VLOOKUP(A61,A61:AA61,18+Tabulky!$C$3) -> 26 | N61: 350 | S61: 26 | T61: 116 | U61: 78.1 | V61: 92 | W61: 152 | X61: 94 | Y61: 61.1 | Z61: 46.3 | AA61: 103 | AB61: =IF(VLOOKUP(A61,A61:AA61,10+Tabulky!$C$4)="","",J61*Titulní!$B$26+VLOOKUP(A61,A61:AA61,10+Tabulky!$C$4)*Titulní!$B$25) -> 
A62: 61 | C62: EURO VÝTAHY s.r.o. | D62: Praha | E62: Ke Stírce 1845/39 | F62: 182 00 | G62: 737211301 | H62: info@eurovytahy.cz | I62: http://www.eurovytahy.cz/ | J62: =VLOOKUP(A62,A62:AA62,18+Tabulky!$C$3) -> 13 | N62: 360 | S62: 13 | T62: 98.2 | U62: 69.4 | V62: 105 | W62: 157 | X62: 98 | Y62: 31 | Z62: 58 | AA62: 113 | AB62: =IF(VLOOKUP(A62,A62:AA62,10+Tabulky!$C$4)="","",J62*Titulní!$B$26+VLOOKUP(A62,A62:AA62,10+Tabulky!$C$4)*Titulní!$B$25) -> 
A63: 62 | C63: KM VÝTAHY | D63: České Budějovice | E63: K.Weise 1046 | F63: 370 04 | G63: 777588801 | H63: info@kmvytahy.cz | I63: http://www.kmvytahy.cz/ | J63: =VLOOKUP(A63,A63:AA63,18+Tabulky!$C$3) -> 151 | N63: 380 | S63: 151 | T63: 135 | U63: 101 | V63: 248 | W63: 1.1 | X63: 58.9 | Y63: 184 | Z63: 203 | AA63: 252 | AB63: =IF(VLOOKUP(A63,A63:AA63,10+Tabulky!$C$4)="","",J63*Titulní!$B$26+VLOOKUP(A63,A63:AA63,10+Tabulky!$C$4)*Titulní!$B$25) -> 
A64: 63 | C64: Výtahy Line s.r.o. | D64: České Budějovice | E64: Balhoslavova 14 | F64: 370 04 | G64: 387428025 | H64: vytahy.line@volny.cz | I64: http://vytahy-line.cz/kontakt/ | J64: =VLOOKUP(A64,A64:AA64,18+Tabulky!$C$3) -> 145 | N64: 380 | S64: 145 | T64: 136 | U64: 105 | V64: 246 | W64: 1.3 | X64: 56 | Y64: 182 | Z64: 202 | AA64: 253 | AB64: =IF(VLOOKUP(A64,A64:AA64,10+Tabulky!$C$4)="","",J64*Titulní!$B$26+VLOOKUP(A64,A64:AA64,10+Tabulky!$C$4)*Titulní!$B$25) -> 
A65: 64 | C65: KLIMAX | D65: Praha | E65: Úvalská 794/23 | F65: 100 00 | G65: 602330430 | H65: pavel.klimax@tiscali.cz | I65: www.klimax-vzduchotechnika.cz | J65: =VLOOKUP(A65,A65:AA65,18+Tabulky!$C$3) -> 14.6 | O65: 350 | S65: 14.6 | T65: 104 | U65: 66.1 | V65: 105 | W65: 149 | X65: 90 | Y65: 49 | Z65: 59.1 | AA65: 109 | AB65: =IF(VLOOKUP(A65,A65:AA65,10+Tabulky!$C$4)="","",J65*Titulní!$B$26+VLOOKUP(A65,A65:AA65,10+Tabulky!$C$4)*Titulní!$B$25) -> 
A66: 65 | C66: VSK Praha s.r.o. | D66: Praha | E66: Livornská 429 | F66: 109 00 | G66: 274860591 | H66: info@vkspraha.cz | I66: vkspraha.cz | J66: =VLOOKUP(A66,A66:AA66,18+Tabulky!$C$3) -> 18.7 | O66: 360 | S66: 18.7 | T66: 108 | U66: 67.3 | V66: 106 | W66: 143 | X66: 84.3 | Y66: 53.3 | Z66: 60.4 | AA66: 110 | AB66: =IF(VLOOKUP(A66,A66:AA66,10+Tabulky!$C$4)="","",J66*Titulní!$B$26+VLOOKUP(A66,A66:AA66,10+Tabulky!$C$4)*Titulní!$B$25) -> 
A67: 66 | C67: AB Clima s.r.o. | D67: Praha | E67: Högerova 1219/3 | F67: 15200 | G67: 800104700 | H67: j.trasak@abclima.cz | I67: http://www.abclima.cz/ | J67: =VLOOKUP(A67,A67:AA67,18+Tabulky!$C$3) -> 6.4 | O67: 370 | S67: 6.4 | T67: 90 | U67: 58.5 | V67: 116 | W67: 152 | X67: 93.8 | Y67: 35.7 | Z67: 70.3 | AA67: 120 | AB67: =IF(VLOOKUP(A67,A67:AA67,10+Tabulky!$C$4)="","",J67*Titulní!$B$26+VLOOKUP(A67,A67:AA67,10+Tabulky!$C$4)*Titulní!$B$25) -> 
A68: 67 | C68: Airclima service | D68: Praha | E68: U Kostrounku 1279 | F68: 156 00 | G68: 776 630 403. | I68: http://www.chlazeni-vzduchotechnika.cz/ | J68: =VLOOKUP(A68,A68:AA68,18+Tabulky!$C$3) -> 13.2 | O68: 365 | S68: 13.2 | T68: 95.7 | U68: 48.5 | V68: 123 | W68: 142 | X68: 93 | Y68: 41.4 | Z68: 77 | AA68: 126 | AB68: =IF(VLOOKUP(A68,A68:AA68,10+Tabulky!$C$4)="","",J68*Titulní!$B$26+VLOOKUP(A68,A68:AA68,10+Tabulky!$C$4)*Titulní!$B$25) -> 
A69: 68 | C69: JR KLIMA s.r.o. | D69: Praha | E69: Vrážská 144 | F69: 153 00 | G69: 257912066 | H69: jr-klima@jr-klima.com | I69: http://www.jr-klima.com/ | J69: =VLOOKUP(A69,A69:AA69,18+Tabulky!$C$3) -> 12 | O69: 370 | S69: 12 | T69: 92.6 | U69: 52.4 | V69: 121 | W69: 146 | X69: 94.4 | Y69: 38 | Z69: 75.7 | AA69: 125 | AB69: =IF(VLOOKUP(A69,A69:AA69,10+Tabulky!$C$4)="","",J69*Titulní!$B$26+VLOOKUP(A69,A69:AA69,10+Tabulky!$C$4)*Titulní!$B$25) -> 
A70: 69 | C70: VZDUCHOTECHNIKA VEJVODA, s.r.o. | D70: Praha | E70: Holečkova 22 | F70: 150 00 | G70: 224816874 | H70: vejvoda@vzduchotechnika-air.cz | I70: http://www.vzduchotechnika-klimatizace.info/ | J70: =VLOOKUP(A70,A70:AA70,18+Tabulky!$C$3) -> 2.6 | O70: 370 | S70: 2.6 | T70: 88 | U70: 60 | V70: 119 | W70: 153 | X70: 96.2 | Y70: 30 | Z70: 72.8 | AA70: 122 | AB70: =IF(VLOOKUP(A70,A70:AA70,10+Tabulky!$C$4)="","",J70*Titulní!$B$26+VLOOKUP(A70,A70:AA70,10+Tabulky!$C$4)*Titulní!$B$25) -> 
A71: 70 | C71: Schönbauer a spol. s.r.o. | D71: Praha | E71: Nad Libří 233/22 | F71: 159 00 | G71: 257940072 | H71: schonbauer@schonbauer.cz | I71: http://www.schonbauer.cz/ | J71: =VLOOKUP(A71,A71:AA71,18+Tabulky!$C$3) -> 5.6 | O71: 350 | S71: 5.6 | T71: 92 | U71: 63 | V71: 115 | W71: 148 | X71: 95 | Y71: 35 | Z71: 71 | AA71: 120 | AB71: =IF(VLOOKUP(A71,A71:AA71,10+Tabulky!$C$4)="","",J71*Titulní!$B$26+VLOOKUP(A71,A71:AA71,10+Tabulky!$C$4)*Titulní!$B$25) -> 
A72: 71 | C72: Comfort sdružení, a.s. | D72: Plzeň | E72: Domažlická 1133 | F72: 318 00 | G72: 377382380 | H72: comfort@comfort-as.cz | I72: www.comfort-as.cz | J72: =VLOOKUP(A72,A72:AA72,18+Tabulky!$C$3) -> 125 | O72: 355 | S72: 125 | T72: 4.6 | U72: 71.7 | V72: 207 | W72: 144 | X72: 126 | Y72: 106 | Z72: 162 | AA72: 211 | AB72: =IF(VLOOKUP(A72,A72:AA72,10+Tabulky!$C$4)="","",J72*Titulní!$B$26+VLOOKUP(A72,A72:AA72,10+Tabulky!$C$4)*Titulní!$B$25) -> 
A73: 72 | C73: Enerfin plus s.r.o. | D73: Plzeň | E73: Domažlická 116/223, | F73: 318 00 | G73: 377457816 | H73: enerfin@enerfin.cz | I73: http://www.enerfinplus.cz/ | J73: =VLOOKUP(A73,A73:AA73,18+Tabulky!$C$3) -> 92 | O73: 360 | S73: 92 | T73: 4.5 | U73: 71.3 | V73: 208 | W73: 144.5 | X73: 126.3 | Y73: 105.2 | Z73: 161.6 | AA73: 211 | AB73: =IF(VLOOKUP(A73,A73:AA73,10+Tabulky!$C$4)="","",J73*Titulní!$B$26+VLOOKUP(A73,A73:AA73,10+Tabulky!$C$4)*Titulní!$B$25) -> 
A74: 73 | C74: ENERGOSTAR Tábor s.r.o. | D74: Tábor | E74: Sedláčkova 1856 | F74: 39002 | G74: 602661810 | H74: info@energostar.cz | I74: http://www.energostar.cz | J74: =VLOOKUP(A74,A74:AA74,18+Tabulky!$C$3) -> 93 | O74: 340 | S74: 93 | T74: 116 | U74: 71.9 | V74: 190 | W74: 59.4 | X74: 1 | Y74: 127 | Z74: 145 | AA74: 194 | AB74: =IF(VLOOKUP(A74,A74:AA74,10+Tabulky!$C$4)="","",J74*Titulní!$B$26+VLOOKUP(A74,A74:AA74,10+Tabulky!$C$4)*Titulní!$B$25) -> 
A75: 74 | C75: BOKAS s.r.o. | D75: České Budějovice | E75: Zavadilka 2572 | F75: 370 05 | G75: 387311222 | H75: bokas@volny.cz | I75: http://www.bokas.cz/ | J75: =VLOOKUP(A75,A75:AA75,18+Tabulky!$C$3) -> 143 | L75: 15 | S75: 143 | T75: 133 | U75: 98.5 | V75: 253 | W75: 5.2 | X75: 63.3 | Y75: 177 | Z75: 207 | AA75: 256 | AB75: =IF(VLOOKUP(A75,A75:AA75,10+Tabulky!$C$4)="","",J75*Titulní!$B$26+VLOOKUP(A75,A75:AA75,10+Tabulky!$C$4)*Titulní!$B$25) -> 5075
A76: 75 | C76: Bittner | D76: České Budějovice | G76: 776770825 | H76: bittner.jakub9@gmail.com | I76: http://www.profi-uklid-cisteni.cz/ | J76: =VLOOKUP(A76,A76:AA76,18+Tabulky!$C$3) -> 135 | L76: 27 | S76: 135 | T76: 131 | U76: 96.3 | V76: 251 | W76: 3 | X76: 62 | Y76: 175 | Z76: 205 | AA76: 258 | AB76: =IF(VLOOKUP(A76,A76:AA76,10+Tabulky!$C$4)="","",J76*Titulní!$B$26+VLOOKUP(A76,A76:AA76,10+Tabulky!$C$4)*Titulní!$B$25) -> 6075
A77: 76 | C77: CLEAN | D77: České Budějovice | E77: Bedřicha Smetany 1409/69 | F77: 370 01 | G77: 387319328 | H77: info@clean2.cz | I77: www.clean2.Cz | J77: =VLOOKUP(A77,A77:AA77,18+Tabulky!$C$3) -> 152 | L77: 25 | Q77: 15 | S77: 152 | T77: 136 | U77: 101 | V77: 249 | W77: 0.6 | X77: 59.5 | Y77: 185 | Z77: 203 | AA77: 252 | AB77: =IF(VLOOKUP(A77,A77:AA77,10+Tabulky!$C$4)="","",J77*Titulní!$B$26+VLOOKUP(A77,A77:AA77,10+Tabulky!$C$4)*Titulní!$B$25) -> 6300
A78: 77 | C78: AB Prokir spol. s r.o. | D78: Praha | E78: Magistrů 921/9 | F78: 14000 | G78: 602332948 | H78: prokir@prokir.cz | I78: http://www.prokir.cz/ | J78: =VLOOKUP(A78,A78:AA78,18+Tabulky!$C$3) -> 5.5 | L78: 9.5 | Q78: 8 | S78: 5.5 | T78: 100 | U78: 62.7 | V78: 109 | W78: 147 | X78: 88.5 | Y78: 45.7 | Z78: 63.4 | AA78: 113 | AB78: =IF(VLOOKUP(A78,A78:AA78,10+Tabulky!$C$4)="","",J78*Titulní!$B$26+VLOOKUP(A78,A78:AA78,10+Tabulky!$C$4)*Titulní!$B$25) -> 1087.5
A79: 78 | C79: ČÍMA odpady s.r.o. | D79: Liberec | E79: Londýnská 10/99 | F79: 46001 | G79: 482710089 | H79: info@cimaliberec.cz | I79: http://www.cimaliberec.cz/ | J79: =VLOOKUP(A79,A79:AA79,18+Tabulky!$C$3) -> 112 | R79: 6 | S79: 112 | T79: 207 | U79: 171 | V79: 1.2 | W79: 251 | X79: 193 | Y79: 153 | Z79: 52.8 | AA79: 101
A80: 79 | C80: UKLIDY. Com | D80: Spálené Poříčí | E80: Republikánská 176 | F80: 335 61 | G80: 773 603 205 | H80: info@uklidy.com | I80: http://www.uklidy.com/ | J80: =VLOOKUP(A80,A80:AA80,18+Tabulky!$C$3) -> 96 | R80: 8 | S80: 96 | T80: 24 | U80: 35 | V80: 209 | W80: 109 | X80: 91 | Y80: 87 | Z80: 160 | AA80: 213
A81: 80 | C81: Andílci s.r.o. | D81: Hradec Králové | E81: Eliščino nábřeží 375 | F81: 500 03 | G81: 724003122 | H81: andilcisro@seznam.cz | I81: http://www.uklid-hk.cz/ | J81: =VLOOKUP(A81,A81:AA81,18+Tabulky!$C$3) -> 115 | L81: 12.5 | Q81: 5 | S81: 115 | T81: 211 | U81: 174 | V81: 97 | W81: 256 | X81: 198 | Y81: 157 | Z81: 82 | AA81: 1.3
A82: 81 | C82: WARRIOR SECURITY, s.r.o. | D82: Pardubice | E82: Bezděkov 38 | F82: 53501 | G82: 608231299 | H82: info@warriorsecurity.cz | I82: info@warriorsecurity.cz | J82: =VLOOKUP(A82,A82:AA82,18+Tabulky!$C$3) -> 106 | P82: 120 | S82: 106 | T82: 197 | U82: 161 | V82: 137 | W82: 177 | X82: 122 | Y82: 143 | Z82: 88 | AA82: 39
A83: 82 | C83: OMEGA SECURITY s.r.o. | D83: Plzeň | E83: Slovanská tř. 80 | F83: 326 00 | G83: 377456668 | H83: megasecurity@seznam.cz | I83: www.omegasecurity.cz | J83: =VLOOKUP(A83,A83:AA83,18+Tabulky!$C$3) -> 95 | S83: 95 | T83: 5 | U83: 73 | V83: 206 | W83: 140 | X83: 128 | Y83: 103 | Z83: 155 | AA83: 208
A84: 83 | C84: ZEKA plus, s.r.o. | D84: Slavičín | E84: Jasmínová č.e. 0876 | F84: 763 21 | G84: 577343818 | H84: zekaplus@zekaplus.cz | I84: http://www.zekaplus.cz/ | J84: =VLOOKUP(A84,A84:AA84,18+Tabulky!$C$3) -> 329 | M84: 45 | S84: 329 | T84: 430 | U84: 377 | V84: 420 | W84: 350 | X84: 365 | Y84: 395 | Z84: 258 | AA84: 238
A85: 84 | C85: Richard Dvořák | D85: České Budějovice | E85: Žižkova tř. 309/12 | F85: 370 01 | G85: 777678066 | H85: richflorida@seznam.cz | I85: http://www.uklid-budejovice.cz/ | J85: =VLOOKUP(A85,A85:AA85,18+Tabulky!$C$3) -> 152 | L85: 23 | Q85: 13 | S85: 152 | T85: 136 | U85: 101 | V85: 249 | W85: 0.6 | X85: 59.5 | Y85: 185 | Z85: 203 | AA85: 252
A86: 85 | C86: Bittner | D86: České Budějovice | G86: 776770825 | I86: http://www.profi-uklid-cisteni.cz/ | J86: =VLOOKUP(A86,A86:AA86,18+Tabulky!$C$3) -> 145 | L86: 27 | S86: 145 | T86: 136 | U86: 105 | V86: 243 | W86: 4 | X86: 56 | Y86: 176 | Z86: 196 | AA86: 248
A87: 86 | C87: KATEŘINA BETLACHOVÁ | D87: Plzeň | E87: Bolevecká 12 | F87: 301 00 | G87: 724508088 | H87: info@uklidy-plzen.cz | I87: http://www.uklidy-plzen.cz/ | J87: =VLOOKUP(A87,A87:AA87,18+Tabulky!$C$3) -> 98 | L87: 24 | Q87: 16 | S87: 98 | T87: 6 | U87: 72 | V87: 208 | W87: 142 | X87: 120 | Y87: 106 | Z87: 151 | AA87: 203
A88: 87 | J88: =VLOOKUP(A88,A88:AA88,18+Tabulky!$C$3) -> 0
A89: 88 | J89: =VLOOKUP(A89,A89:AA89,18+Tabulky!$C$3) -> 0
A90: 89 | J90: =VLOOKUP(A90,A90:AA90,18+Tabulky!$C$3) -> 0
A91: 90 | J91: =VLOOKUP(A91,A91:AA91,18+Tabulky!$C$3) -> 0
A92: 91 | J92: =VLOOKUP(A92,A92:AA92,18+Tabulky!$C$3) -> 0
J93: =VLOOKUP(A93,A93:AA93,18+Tabulky!$C$3) -> 
J94: =VLOOKUP(A94,A94:AA94,18+Tabulky!$C$3) -> 
J95: =VLOOKUP(A95,A95:AA95,18+Tabulky!$C$3) -> 
J96: =VLOOKUP(A96,A96:AA96,18+Tabulky!$C$3) -> 
J97: =VLOOKUP(A97,A97:AA97,18+Tabulky!$C$3) -> 
J98: =VLOOKUP(A98,A98:AA98,18+Tabulky!$C$3) -> 
J99: =VLOOKUP(A99,A99:AA99,18+Tabulky!$C$3) -> 
J100: =VLOOKUP(A100,A100:AA100,18+Tabulky!$C$3) -> 
J101: =VLOOKUP(A101,A101:AA101,18+Tabulky!$C$3) -> 
J102: =VLOOKUP(A102,A102:AA102,18+Tabulky!$C$3) -> 
J103: =VLOOKUP(A103,A103:AA103,18+Tabulky!$C$3) -> 
J104: =VLOOKUP(A104,A104:AA104,18+Tabulky!$C$3) -> 

Sheet Tabulky
A1: Pomocné
B2: Počet firem v databázi | C2: =MAX('Seznam firem'!$A$2:$A$10000) -> 91 | E2: Nejnižší cena | F2: =MIN('Seznam firem'!$AB$2:$AB$10000) -> 757.5
B3: =VLOOKUP(C3,Tabulky!A17:B29,2,1) -> Praha | C3: 1 | E3: Nejvyšší cena | F3: =MAX('Seznam firem'!$AB$2:$AB$10000) -> 6300
B4: =VLOOKUP(C4,Tabulky!A7:C14,2,1) -> Mytí oken | C4: 2
A6: TABULKA SLUŽEB
A7: 1 | B7: Mytí obkladů | C7: Kč/m2 | D7: m2
A8: 2 | B8: Mytí oken | C8: Kč/m2 | D8: m2
A9: 3 | B9: Revize hasících přístrojů | C9: Kč/ks | D9: ks
A10: 4 | B10: Revize výtahů | C10: Kč/h | D10: h
A11: 5 | B11: Revize vzduchotechniky | C11: Kč/h | D11: h
A12: 6 | B12: Security služby | C12: Kč/h | D12: h
A13: 7 | B13: Úklid podlah | C13: Kč/m2 | D13: m2
A14: 8 | B14: Úklid sněhu | C14: Kč/m2 | D14: m2
A16: TABULKA MĚST
A17: 1 | B17: Praha
A18: 2 | B18: Plzeň
A19: 3 | B19: Příbram
A20: 4 | B20: Liberec
A21: 5 | B21: České Budějovice
A22: 6 | B22: Tábor
A23: 7 | B23: Kladno
A24: 8 | B24: Mladá Boleslav
A25: 9 | B25: Hradec Králové

Sheet služby
A1: Činnost | B1: ID | C1: Vzdálenost | D1: Cena | E1: MJ
A2: Mytí oken | B2: 1 | C2: 8 | D2: 6 | E2: Kč/m2
A3: Úklid podlah | B3: 1 | C3: 8 | D3: 2 | E3: Kč/m2
A4: Mytí obkladů | B4: 1 | C4: 8 | D4: 40 | E4: Kč/m2
A5: Mytí oken | B5: 2 | C5: 8.5 | D5: 8 | E5: Kč/m2
A6: Úklid podlah | B6: 2 | C6: 8.5 | D6: 0.9 | E6: Kč/m2
A7: Mytí obkladů | B7: 2 | C7: 8.5 | D7: 35 | E7: Kč/m2
A8: Mytí oken | B8: 3 | C8: 10.3 | D8: 11 | E8: Kč/m2
A9: Úklid podlah | B9: 3 | C9: 10.3 | D9: 1.7 | E9: Kč/m2
A10: Mytí obkladů | B10: 3 | C10: 10.3 | D10: 30 | E10: Kč/m2
A11: Mytí oken | B11: 4 | C11: 19.5 | D11: 13 | E11: Kč/m2
A12: Úklid podlah | B12: 4 | C12: 19.5 | D12: 3 | E12: Kč/m2
A13: Mytí oken | B13: 5 | C13: 11.8 | D13: 10 | E13: Kč/m2
A14: Úklid podlah | B14: 5 | C14: 11.8 | D14: 0.8 | E14: Kč/m2
A15: Mytí obkladů | B15: 5 | C15: 11.8 | D15: 32 | E15: Kč/m2
A16: Mytí oken | B16: 6 | C16: 3.2 | D16: 12 | E16: Kč/m2
A17: Úklid podlah | B17: 6 | C17: 3.2 | D17: 0.55 | E17: Kč/m2
A18: Mytí oken | B18: 7 | C18: 13.7 | D18: 10 | E18: Kč/m2
A19: Úklid podlah | B19: 7 | C19: 13.7 | D19: 8 | E19: Kč/m2
A20: Mytí oken | B20: 8 | C20: 1 | D20: 12 | E20: Kč/m2
A21: Úklid podlah | B21: 8 | C21: 1 | D21: 7 | E21: Kč/m2
A22: Úklid sněhu | B22: 8 | C22: 1 | D22: 5 | E22: Kč/m2
A23: Mytí oken | B23: 9 | C23: 3.7 | D23: 8 | E23: Kč/m2
A24: Úklid podlah | B24: 9 | C24: 3.7 | D24: 2.8 | E24: Kč/m2
A25: Úklid sněhu | B25: 9 | C25: 3.7 | D25: 3 | E25: Kč/m2
A26: Mytí obkladů | B26: 9 | C26: 3.7 | D26: 38 | E26: Kč/m2
A27: Mytí oken | B27: 10 | C27: 0.5 | D27: 15 | E27: Kč/m2
A28: Úklid podlah | B28: 10 | C28: 0.5 | D28: 4 | E28: Kč/m2
A29: Mytí obkladů | B29: 10 | C29: 0.5 | D29: 70 | E29: Kč/m2
A30: Mytí oken | B30: 11 | C30: 10.7 | D30: 8 | E30: Kč/m2
A31: Mytí oken | B31: 12 | C31: 5.7 | D31: 15 | E31: Kč/m2
A32: Mytí oken | B32: 13 | C32: 5.5 | D32: 9.5 | E32: Kč/m2
A33: Úklid podlah | B33: 13 | C33: 5.5 | D33: 10 | E33: Kč/m2
A34: Mytí oken | B34: 14 | C34: 6.3 | D34: 6 | E34: Kč/m2
A35: Úklid podlah | B35: 14 | C35: 6.3 | D35: 2 | E35: Kč/m2
A36: Mytí obkladů | B36: 14 | C36: 6.3 | D36: 40 | E36: Kč/m2
A37: Úklid sněhu | B37: 15 | C37: 21.3 | D37: 13 | E37: Kč/m2
A38: Úklid sněhu | B38: 16 | C38: 10.4 | D38: 7 | E38: Kč/m2
A39: Úklid sněhu | B39: 17 | C39: 13.4 | D39: 8 | E39: Kč/m2
A40: Úklid sněhu | B40: 18 | C40: 11.5 | D40: 2.4 | E40: Kč/m2
A41: Úklid sněhu | B41: 19 | C41: 26.8 | D41: 5 | E41: Kč/m2
A42: Security služby | B42: 20 | C42: 2.1 | D42: 85 | E42: Kč/h
A43: Security služby | B43: 21 | C43: 5.5 | D43: 103 | E43: Kč/h
A44: Security služby | B44: 22 | C44: 6.9 | D44: 150 | E44: Kč/h
A45: Security služby | B45: 23 | C45: 5.1 | D45: 125 | E45: Kč/h
A46: Security služby | B46: 24 | C46: 8.5 | D46: 90 | E46: Kč/h
A47: Security služby | B47: 25 | C47: 6.6 | D47: 180 | E47: Kč/h
A48: Mytí oken | B48: 26 | C48: 59 | D48: 6 | E48: Kč/m2
A49: Úklid podlah | B49: 26 | C49: 59 | D49: 10 | E49: Kč/m2
A50: Mytí oken | B50: 27 | C50: 61 | D50: 12 | E50: Kč/m2
A51: Mytí oken | B51: 28 | C51: 60.3 | D51: 13 | E51: Kč/m2
A52: Úklid podlah | B52: 28 | C52: 60.3 | D52: 19 | E52: Kč/m2
A53: Mytí oken | B53: 29 | C53: 32 | D53: 16 | E53: Kč/m2
A54: Mytí oken | B54: 30 | C54: 5 | D54: 10 | E54: Kč/m2
A55: Revize výtahů | B55: 31 | C55: 28.5 | D55: 350 | E55: Kč/h
A56: Security služby | B56: 32 | C56: 14.2 | D56: 90 | E56: Kč/h
A57: Security služby | B57: 33 | C57: 225 | D57: 75 | E57: Kč/h
A58: Security služby | B58: 34 | C58: 99 | D58: 75 | E58: Kč/h
A59: Security služby | B59: 35 | C59: 390 | D59: 85 | E59: Kč/h
A60: Security služby | B60: 36 | C60: 20.5 | D60: 105 | E60: Kč/h
A61: Mytí oken | B61: 37 | C61: 110 | D61: 14 | E61: Kč/m2
A62: Úklid podlah | B62: 37 | C62: 110 | D62: 6 | E62: Kč/m2
A63: Mytí obkladů | B63: 37 | C63: 110 | D63: 25 | E63: Kč/m2
A64: Mytí oken | B64: 38 | C64: 105 | D64: 5.5 | E64: Kč/m2
A65: Úklid podlah | B65: 38 | C65: 105 | D65: 12 | E65: Kč/m2
A66: Mytí obkladů | B66: 38 | C66: 105 | D66: 40 | E66: Kč/m2
A67: Revize výtahů | B67: 39 | C67: 6.1 | D67: 360 | E67: Kč/h
A68: Revize hasících přístrojů | B68: 40 | C68: 91 | D68: 40 | E68: Kč/ks
A69: Revize hasících přístrojů | B69: 41 | C69: 45 | D69: 49 | E69: Kč/ks
A70: Revize hasících přístrojů | B70: 42 | C70: 16.5 | D70: 40 | E70: Kč/ks
A71: Revize hasících přístrojů | B71: 43 | C71: 114 | D71: 40 | E71: Kč/ks
A72: Revize hasících přístrojů | B72: 44 | C72: 13.7 | D72: 60 | E72: Kč/ks
A73: Revize hasících přístrojů | B73: 45 | C73: 146 | D73: 45 | E73: Kč/ks
A74: Revize hasících přístrojů | B74: 46 | C74: 8.1 | D74: 40 | E74: Kč/ks
A75: Revize hasících přístrojů | B75: 47 | C75: 6 | D75: 30 | E75: Kč/ks
A76: Revize výtahů | B76: 48 | C76: 128 | D76: 350 | E76: Kč/h
A77: Mytí oken | B77: 49 | C77: 63 | D77: 15 | E77: Kč/m2
A78: Úklid podlah | B78: 49 | C78: 63 | D78: 4 | E78: Kč/m2
A79: Revize výtahů | B79: 49 | C79: 92 | D79: 350 | E79: Kč/h
A80: Mytí oken | B80: 50 | C80: 85 | D80: 14 | E80: Kč/m2
A81: Úklid podlah | B81: 50 | C81: 85 | D81: 4 | E81: Kč/m2
A82: Úklid podlah | B82: 50 | C82: 85 | D82: 3 | E82: Kč/m2
A83: Mytí oken | B83: 51 | C83: 105 | D83: 16 | E83: Kč/m2
A84: Úklid podlah | B84: 51 | C84: 105 | D84: 11 | E84: Kč/m2
A85: Mytí obkladů | B85: 52 | C85: 105 | D85: 28 | E85: Kč/m2
A86: Revize vzduchotechniky | B86: 52 | C86: 5.1 | D86: 360 | E86: Kč/h
A87: Revize výtahů | B87: 53 | C87: 5.5 | D87: 380 | E87: Kč/h
A88: Revize výtahů | B88: 54 | C88: 19.6 | D88: 365 | E88: Kč/h
A89: Revize výtahů | B89: 55 | C89: 17.1 | D89: 380 | E89: Kč/h
A90: Revize výtahů | B90: 56 | C90: 15.1 | D90: 355 | E90: Kč/h
A91: Revize výtahů | B91: 57 | C91: 20.2 | D91: 360 | E91: Kč/h
A92: Revize výtahů | B92: 58 | C92: 105 | D92: 360 | E92: Kč/h
A93: Revize výtahů | B93: 59 | C93: 87 | D93: 370 | E93: Kč/h
A94: Revize výtahů | B94: 60 | C94: 26 | D94: 350 | E94: Kč/h
A95: Revize výtahů | B95: 61 | C95: 13 | D95: 360 | E95: Kč/h
A96: Revize výtahů | B96: 62 | C96: 151 | D96: 380 | E96: Kč/h
A97: Revize výtahů | B97: 63 | C97: 145 | D97: 380 | E97: Kč/h
A98: Revize vzduchotechniky | B98: 64 | C98: 14.6 | D98: 350 | E98: Kč/h
A99: Revize vzduchotechniky | B99: 65 | C99: 18.7 | D99: 360 | E99: Kč/h
A100: Revize vzduchotechniky | B100: 66 | C100: 6.4 | D100: 370 | E100: Kč/h
A101: Revize vzduchotechniky | B101: 67 | C101: 13.2 | D101: 365 | E101: Kč/h
A102: Revize vzduchotechniky | B102: 68 | C102: 12 | D102: 370 | E102: Kč/h
A103: Revize vzduchotechniky | B103: 69 | C103: 2.6 | D103: 370 | E103: Kč/h
A104: Revize vzduchotechniky | B104: 70 | C104: 5.6 | D104: 350 | E104: Kč/h
A105: Revize vzduchotechniky | B105: 71 | C105: 125 | D105: 355 | E105: Kč/h
A106: Revize vzduchotechniky | B106: 72 | C106: 92 | D106: 360 | E106: Kč/h
A107: Revize vzduchotechniky | B107: 73 | C107: 93 | D107: 340 | E107: Kč/h

Sheet Úklid podlah
B4: Název poskytovatele | C4: Město | D4: Ulice | E4: PSČ | F4: Telefon | G4: E-mail | H4: HTTP | I4: Vzdálenost km | J4: Cena služby za 1m2
A5: 1. | B5: COOL Facillity s.r.o. | C5: Praha | D5: Švábky 52 | E5: 180 00 | F5: 777790005 | G5: info@completeservice.cz | H5: www.completeservice.cz | I5: 8 | J5: 2
A6: 2. | B6: Úklidové služby | C6: Praha | D6: V Nových Vokovicích 149 | E6: 160 00 | F6: 602238073 | G6: www.uklidovesluzby.cz | H6: www.uklidovesluzby.cz | I6: 8.5 | J6: 2.5
A7: 3. | B7: EuroProfi Clean v.o.s | C7: Praha | D7: Cílkova 639/24 | E7: 142 00 | F7: 777595854 | G7: epc@europroficlean.cz | H7: www.europroficlean.cz | I7: 10.3 | J7: 1.7
A8: 4. | B8: Ksena.s.r.o. | C8: Praha | D8: Dářská 275/14 | E8: 198 00 | F8: 777595854 | G8: reditel.uklid@ksena.cz | H8: www.uklidove-prace-ksena.cz | I8: 19.5 | J8: 3
A9: 5. | B9: D&D s.r.o. | C9: Praha | D9: Výletní 398/27 | E9: 142 00 | F9: 244470604 | G9: info@ddservis.eu | H9: www.dd-uklid-praha.cz | I9: 11.8 | J9: 2.5
A10: 6. | B10: DOLEŽAL-DUHA, s. r. o. | C10: Praha | D10: Podolská 241/23, | E10: 147 00 | F10: 733 640 206 | G10: info@duha.eu | H10: www.duha-uklid.cz | I10: 3.2 | J10: 3
A11: 7. | B11: David Plecitý | C11: Praha | D11: Dubnova 807 | E11: 149 00 | F11: 602332178 | G11: dplecity@volny.cz | H11: www.uklidplecity.cz | I11: 13.7 | J11: 8
A12: 8. | B12: A.W.I.S. | C12: Praha | D12: Na Plzeňce 1236/4 | E12: 150 00 | F12: 222531104 | G12: info@uklidy-kancelari.cz | H12: www.uklidy-kancelari.cz | I12: 1 | J12: 7
A13: 9. | B13: Herakles | C13: Praha | D13: Marie Cibulkové 14 | E13: 140 00 | F13: 222934038 | G13: jirisvatek.herakles@seznam.cz | H13: www.adherakles.cz | I13: 3.7 | J13: 2.8
A14: 10. | B14: VYČISTÍM CZ | C14: Praha | D14: Zborovská 4 | E14: 150 00 | F14: 606741841 | G14: info@vycistim.cz | H14: www.vycistim.cz | I14: 0.5 | J14: 4
A15: 11. | B15: Úklidová četa | C15: Praha | D15: Jičínská 37 | E15: 130 00 | F15: 608947845 | G15: info@uklidovaceta.cz | H15: www.uklidovaceta.cz | I15: 5.7 | J15: 2.9
A16: 12. | B16: AB Prokir spol. s r.o. | C16: Praha | D16: Magistrů 921/9 | E16: 140 00 | F16: 602332948 | G16: prokir@prokir.cz | H16: www.prokir.cz | I16: 5.5 | J16: 10
A17: 13. | B17: RPM Service CZ a.s. | C17: Praha | D17: Moskevská 63/659 | E17: 101 16 | F17: 272 099 600 | G17: obchod@rpmservice.cz | H17: www.rpmservice.cz | I17: 6.3 | J17: 2

Sheet Úklid sněhu
B4: Název poskytovatele | C4: Město | D4: Ulice | E4: PSČ | F4: Telefon | G4: E-mail | H4: HTTP | I4: Vzdálenost km | J4: Cena služby za 1m2
A5: 1. | B5: Detai cleaning | C5: Praha | D5: Tovarova 1211 | E5: 198 00 | F5: 777926300 | G5: info@detai.cz | H5: www.detai.cz | I5: 21.3 | J5: 13
A6: 2. | B6: Komplexní úklid | C6: Praha | D6: Šatrova 662 | E6: 14200 | F6: 603444507 | G6: info@komplexni-uklid.cz | H6: www.komplexni-uklid.cz | I6: 10.4 | J6: 7
A7: 3. | B7: Dopareal | C7: Praha | D7: Poznaňská 435 | E7: 18100 | F7: 604946096 | G7: dopareal@gmail.com | H7: www.dopareal.cz | I7: 13.4 | J7: 8
A8: 4. | B8: Šticha a syn s.r.o. | C8: Praha | D8: Choceradská 3044 | E8: 141 00 | F8: 777 844 726 | G8: info@stichaasyn.cz | H8: www.stichaasyn.cz | I8: 11.5 | J8: 2.4
A9: 5. | B9: Miroslav Mlezviva | C9: Kladno | D9: Smetanova 284 | E9: 273 45 | F9: 725 370 545 | G9: miloslav.mleziva@uklidmleziva.cz | H9: www.uklidmleziva.cz | I9: 26.8 | J9: 5
A10: 6. | B10: A.W.I.S. | C10: Praha | D10: Na Plzeňce 1236/4 | E10: 150 00 | F10: 222531104 | G10: info@uklidy-kancelari.cz | H10: www.uklidy-kancelari.cz | I10: 1 | J10: 5
A11: 7. | B11: Herakles | C11: Praha | D11: Marie Cibulkové 14 | E11: 140 00 | F11: 222934038 | G11: jirisvatek.herakles@seznam.cz | H11: www.adherakles.cz | I11: 3.7 | J11: 3

Sheet Mytí oken
B4: Název poskytovatele | C4: Město | D4: Ulice | E4: PSČ | F4: Telefon | G4: E-mail | H4: HTTP | I4: Vzdálenost km | J4: Cena služby za 1m2
A5: 1. | B5: COOL Facillity s.r.o. | C5: Praha | D5: Švábky 52 | E5: 180 00 | F5: 777790005 | G5: info@completeservice.cz | H5: www.completeservice.cz | I5: 8 | J5: 6
A6: 2. | B6: Úklidové služby | C6: Praha | D6: V Nových Vokovicích 149 | E6: 160 00 | F6: 602238073 | G6: www.uklidovesluzby.cz | H6: www.uklidovesluzby.cz | I6: 8.5 | J6: 8
A7: 3. | B7: EuroProfi Clean v.o.s | C7: Praha | D7: Cílkova 639/24 | E7: 142 00 | F7: 777595854 | G7: epc@europroficlean.cz | H7: www.europroficlean.cz | I7: 10.3 | J7: 11
A8: 4. | B8: Ksena.s.r.o. | C8: Praha | D8: Dářská 275/14 | E8: 198 00 | F8: 777595854 | G8: reditel.uklid@ksena.cz | H8: www.uklidove-prace-ksena.cz | I8: 19.5 | J8: 13
A9: 5. | B9: D&D s.r.o. | C9: Praha | D9: Výletní 398/27 | E9: 142 00 | F9: 244470604 | G9: info@ddservis.eu | H9: www.dd-uklid-praha.cz | I9: 11.8 | J9: 10
A10: 6. | B10: DOLEŽAL-DUHA, s. r. o. | C10: Praha | D10: Podolská 241/23, | E10: 147 00 | F10: 733 640 206 | G10: info@duha.eu | H10: www.duha-uklid.cz | I10: 3.2 | J10: 12
A11: 7. | B11: David Plecitý | C11: Praha | D11: Dubnova 807 | E11: 149 00 | F11: 602332178 | G11: dplecity@volny.cz | H11: www.uklidplecity.cz | I11: 13.7 | J11: 10
A12: 8. | B12: A.W.I.S. | C12: Praha | D12: Na Plzeňce 1236/4 | E12: 150 00 | F12: 222531104 | G12: info@uklidy-kancelari.cz | H12: www.uklidy-kancelari.cz | I12: 1 | J12: 12
A13: 9. | B13: Herakles | C13: Praha | D13: Marie Cibulkové 14 | E13: 140 00 | F13: 222934038 | G13: jirisvatek.herakles@seznam.cz | H13: www.adherakles.cz | I13: 3.7 | J13: 8
A14: 10. | B14: VYČISTÍM CZ | C14: Praha | D14: Zborovská 4 | E14: 150 00 | F14: 606741841 | G14: info@vycistim.cz | H14: www.vycistim.cz | I14: 0.5 | J14: 15
A15: 11. | B15: Mytí oken s.r.o. | C15: Praha | D15: Na Harfě 7 | E15: 198 00 | F15: 603232515 | G15: uklid@mytioken.cz | H15: www.mytioken.cz | I15: 10.7 | J15: 8
A16: 12. | B16: Úklidová četa | C16: Praha | D16: Jičínská 37 | E16: 130 00 | F16: 608947845 | G16: info@uklidovaceta.cz | H16: www.uklidovaceta.cz | I16: 5.7 | J16: 15
A17: 13. | B17: AB Prokir spol. s r.o. | C17: Praha | D17: Magistrů 921/9 | E17: 140 00 | F17: 602332948 | G17: prokir@prokir.cz | H17: http://www.prokir.cz/ | I17: 5.5 | J17: 9.5
A18: 14. | B18: RPM Service CZ a.s. | C18: Praha | D18: Moskevská 63/659 | E18: 101 16 | F18: 272 099 600 | G18: obchod@rpmservice.cz | H18: www.rpmservice.cz | I18: 6.3 | J18: 6

Sheet Mytí obkladů
B4: Název poskytovatele | C4: Město | D4: Ulice | E4: PSČ | F4: Telefon | G4: E-mail | H4: HTTP | I4: Vzdálenost km | J4: Cena služby za 1m2
A5: 1. | B5: COOL Facillity s.r.o. | C5: Praha | D5: Švábky 52 | E5: 180 00 | F5: 777790005 | G5: info@completeservice.cz | H5: www.completeservice.cz | I5: 8 | J5: 40
A6: 2. | B6: Úklidové služby | C6: Praha | D6: V Nových Vokovicích 149 | E6: 160 00 | F6: 602238073 | G6: www.uklidovesluzby.cz | H6: www.uklidovesluzby.cz | I6: 8.5 | J6: 35
A7: 3. | B7: EuroProfi Clean v.o.s | C7: Praha | D7: Cílkova 639/24 | E7: 142 00 | F7: 777595854 | G7: epc@europroficlean.cz | H7: www.europroficlean.cz | I7: 10.3 | J7: 30
A8: 4. | B8: D&D s.r.o. | C8: Praha | D8: Výletní 398/27 | E8: 142 00 | F8: 244470604 | G8: info@ddservis.eu | H8: www.dd-uklid-praha.cz | I8: 19.5 | J8: 32
A9: 5. | B9: Herakles | C9: Praha | D9: Marie Cibulkové 14 | E9: 140 00 | F9: 222934038 | G9: jirisvatek.herakles@seznam.cz | H9: www.adherakles.cz | I9: 3.7 | J9: 38
A10: 6. | B10: VYČISTÍM CZ | C10: Praha | D10: Zborovská 4 | E10: 150 00 | F10: 606741841 | G10: info@vycistim.cz | H10: www.vycistim.cz | I10: 0.5 | J10: 70
A11: 7. | B11: RPM Service CZ a.s. | C11: Praha | D11: Moskevská 63/659 | E11: 101 16 | F11: 272 099 600 | G11: obchod@rpmservice.cz | H11: www.rpmservice.cz | I11: 6.3 | J11: 40

Sheet Security
B4: Název poskytovatele | C4: Město | D4: Ulice | E4: PSČ | F4: Telefon | G4: E-mail | H4: HTTP | I4: Vzdálenost km | J4: Cena služby za h
A5: 1. | B5: RP Security | C5: Praha | D5: Plavecká 8 | E5: 128 00 | F5: 774 676 665 | G5: info@rp-security.cz | H5: www.rp-security.cz | I5: 2.1 | J5: 85
A6: 2. | B6: S a S security service, s.r.o. | C6: Praha | D6: Ke Klimentce 15 | E6: 150 00 | F6: 257225555 | G6: sas@sassecurity.cz | H6: www.sassecurity.cz | I6: 5.5 | J6: 103
A7: 3. | B7: Security Cihlář | C7: Praha | D7: Polední 1029/29 | E7: 147 00 | F7: 774881892 | G7: security-cihlar@email.cz | H7: www.security-cihlar.cz | I7: 6.9 | J7: 150
A8: 4. | B8: RTH Security s.r.o. | C8: Praha | D8: Jaurisova 4 | E8: 140 00 | F8: 261213712 | G8: obchod@rthgroup.cz | H8: www.rthgroup.cz | I8: 5.1 | J8: 125
A9: 5. | B9: CBS PROFESIONAL security agency, a.s. | C9: Praha | D9: Na Rovnosti 2245/3 | E9: 130 00 | F9: 242441476 | G9: info@cbs.cz | H9: www.cbs.cz | I9: 8.5 | J9: 90
A10: 6. | B10: V.I.P. SECURITY SERVICES s.r.o. | C10: Praha | D10: Za Elektrárnou 419 | E10: 170 00 | F10: 266727468 | G10: info@prague-security.cz | H10: www.prague-security.cz | I10: 6.6 | J10: 180
A11: 7. | B11: HG-SECURITY spol. s r.o. | C11: Praha | D11: Chudenická 30/1059 | E11: 102 00 | F11: 733121587 | G11: hg-security@centrum.cz | H11: http://www.hg-security.cz/ | I11: 14.2 | J11: 90
A12: 8. | B12: Security service | C12: Praha | D12: Dopravní 500 | E12: 14000 | F12: 606728321 | G12: michal.krejcik@email.cz | H12: www.security.wbs.cz | I12: 20.5 | J12: 105

Sheet Hasicí přístroje
B3: Název poskytovatele | C3: Město | D3: Ulice | E3: PSČ | F3: Telefon | G3: E-mail | H3: HTTP | I3: Vzdálenost km | J3: Cena služby za ks
A4: 1. | B4: Bezpo | C4: Plzeň | D4: Hřímalého 805/3 | E4: 301 00 | F4: 602104471 | G4: bezpoplzen@seznam.cz | H4: http://www.bezpo.com/ | I4: 91 | J4: 40
A5: 2. | B5: Jaroslav Vidim | C5: Velvary | D5: Malovarská 387 | E5: 273 24 | F5: 733139577 | G5: info@hasici-pristroje.net | H5: http://www.hasici-pristroje.net/ | I5: 45 | J5: 49
A6: 3. | B6: Karel Hrbek | C6: Praha | D6: Černošice | E6: 252 28 | F6: 777312705 | G6: technikpo@technikpo.cz | H6: http://www.technikpo.cz/ | I6: 16.5 | J6: 40
A7: 4. | B7: SLÁDEČEK PAVEL | C7: Opatovice nad Labem | D7: Jozífova 377 | E7: 533 45 | F7: 603972288 | G7: hasici-pristroje-sladecek@seznam.cz | H7: http://www.hasici-pristroje-sladecek.stranky1.cz/ | I7: 114 | J7: 40
A8: 5. | B8: AGROS | C8: Praha | D8: Bojasova 1245 | E8: 18200 | F8: 606950976 | G8: argos.zvara@seznam.cz | H8: http://www.argos-pozarniservis.cz/ | I8: 13.7 | J8: 60
A9: 6. | B9: AHAS-PROFI | C9: Hluboká nad Vltavou | D9: Zvolenovská 536 | E9: 371 43 | F9: 775413089 | G9: ahas-profi@seznam.cz | H9: http://www.ahas-profi.cz/ | I9: 146 | J9: 45
A10: 7. | B10: Požární revize | C10: Praha | D10: Kurzova 2391/9 | E10: 155 00 | F10: 776638919 | G10: matyaskalenda@pozarni-prevence.eu | H10: http://www.pozarni-revize.eu/ | I10: 8.1 | J10: 40
A11: 8. | B11: Hlavní báňská záchranná stanice Praha a.s. | C11: Praha | D11: Za opravnou 276/8 | E11: 151 23 | F11: 257 282 701 | G11: hbzs@hbzs-praha.cz | H11: http://www.hbzs-praha.cz/ | I11: 6 | J11: 30

Sheet výtahy
B7: Název poskytovatele | C7: Město | D7: Ulice | E7: PSČ | F7: Telefon | G7: E-mail | H7: HTTP | I7: Vzdálenost km | J7: Cena služby za h
A8: 1. | B8: Výtahy Kladno v.o.s | C8: Kladno | D8: Kročehlavská 1308 | E8: 272 01 | F8: 603718172 | G8: vytahy@vytahykladno.cz | H8: www.vytahykladno.cz | I8: 28.5 | J8: 350
A9: 2. | B9: TDT servis výtahů | C9: Praha | D9: Šimáčkova 8 | E9: 170 00 | F9: 775619908 | G9: tdt-vytahy@seznam.cz | H9: http://www.tdt.wz.cz/ | I9: 6.1 | J9: 360
A10: 3. | B10: Výtahy Holý, s.r.o. | C10: Praha | D10: K Louži-2 | E10: 101 00 | F10: 732 782 588 | G10: info@vytahyholy.cz | H10: www.vytahyholy.cz | I10: 5.5 | J10: 380
A11: 4. | B11: BŘÍZA Výtahy s.r.o. | C11: Praha | D11: Českobrodská 72 | E11: 190 12 | F11: 777 251 659 | G11: info@briza-vytahy.cz | H11: http://www.briza-vytahy.cz/ | I11: 19.6 | J11: 365
A12: 5. | B12: NERA-lift, s.r.o. | C12: Praha | D12: U Továren 770/1b | E12: 102 00 | F12: 602699401 | G12: info@nera-lift.cz | H12: www.nera-lift.cz | I12: 17.1 | J12: 380
A13: 6. | B13: Bestlift, spol. s r.o. | C13: Praha | D13: Pražská 15, | E13: 251 64 | F13: 724971453 | G13: ivanka@bestlift.cz | H13: http://www.bestlift.cz/ | I13: 15.1 | J13: 355
A14: 7. | B14: Evyt s.r.o. | C14: Praha | D14: Klouzková 74 | E14: 104 00 | F14: 724 753 434 | G14: evyt@evyt.cz | H14: http://www.evyt.cz/ | I14: 20.2 | J14: 360
A15: 8. | B15: EXPRESS ELEVATORS S.R.O. | C15: Praha | D15: Chodovická 2279 | E15: 193 00 | F15: 603546098 | G15: info@e-elevators.cz | H15: http://www.e-elevators.cz/ | I15: 26 | J15: 350
A16: 9. | B16: EURO VÝTAHY s.r.o. | C16: Praha | D16: Ke Stírce 1845/39 | E16: 182 00 | F16: 737211301 | G16: info@eurovytahy.cz | H16: http://www.eurovytahy.cz/ | I16: 13 | J16: 360
M18: Druh výtahu | N18: Výtahy uvedené do provozu po 31.12.1992 | O18: Výtahy uvedené do provozu před 1.1.1993
M19: Provozní prohlídky
M20: Výtahy bez rozlišení | N20: 2x/týden
M21: Lhůty provádění odborných prohlídek v [měsících]
M22: Výtahy určené k dopravě osob nebo osob a nákladů v budovách s převžujícím volným přístupem večejnosti | N22: 3 | O22: 2
M23: Výtahy určené k dopravě osob nebo osob a nákladů v budovách používaných spíše uživateli budovy | N23: 4 | O23: 3
M24: Výtahy určené k dopravě nákladů a malé nákladní výtahy | N24: 6 | O24: 6
M25: Lhůty provádění odborných zkoušek v [roky]
M26: Výtahy určené k dopravě osob nebo osob a nákladů | N26: 3
M27: Výtahy určené k dopravě nákladů a malé nákladní výtahy | N27: 6
M28: Lhůty provádění inspekčních prohlídek v [roky]
M29: Výtahy bez rozlišení | N29: 6

Sheet Klima
B4: Název poskytovatele | C4: Město | D4: Ulice | E4: PSČ | F4: Telefon | G4: E-mail | H4: HTTP | I4: Vzdálenost km | J4: Cena služby za h
A5: 1. | B5: KLIMAX | C5: Praha | D5: Úvalská 794/23 | E5: 100 00 | F5: 602330430 | G5: pavel.klimax@tiscali.cz | H5: www.klimax-vzduchotechnika.cz | I5: 14.6 | J5: 350
A6: 2. | B6: VSK Praha s.r.o. | C6: Praha | D6: Livornská 429 | E6: 109 00 | F6: 274860591 | G6: info@vkspraha.cz | H6: vkspraha.cz | I6: 18.7 | J6: 360
A7: 3. | B7: AB Clima s.r.o. | C7: Praha | D7: Högerova 1219/3 | E7: 15200 | F7: 800104700 | G7: j.trasak@abclima.cz | H7: http://www.abclima.cz/ | I7: 6.4 | J7: 370
A8: 4. | B8: Airclima service | C8: Praha | D8: U Kostrounku 1279 | E8: 156 00 | F8: 776 630 403. | H8: www.chlazeni-vzduchotechnika.cz | I8: 13.2 | J8: 365
A9: 5. | B9: JR KLIMA s.r.o. | C9: Praha | D9: Vrážská 144 | E9: 153 00 | F9: 257912066 | G9: jr-klima@jr-klima.com | H9: http://www.jr-klima.com/ | I9: 12 | J9: 370
A10: 6. | B10: VZDUCHOTECHNIKA VEJVODA, s.r.o. | C10: Praha | D10: Holečkova 22 | E10: 150 00 | F10: 224816874 | G10: vejvoda@vzduchotechnika-air.cz | H10: www.vzduchotechnika-klimatizace.info | I10: 2.6 | J10: 370
A11: 7. | B11: Schönbauer a spol. s.r.o. | C11: Praha | D11: Nad Libří 233/22 | E11: 159 00 | F11: 257940072 | G11: schonbauer@schonbauer.cz | H11: http://www.schonbauer.cz/ | I11: 5.6 | J11: 350
A12: 8. | B12: Comfort sdružení, a.s. | C12: Plzeň | D12: Domažlická 1133 | E12: 318 00 | F12: 377382380 | G12: comfort@comfort-as.cz | H12: www.comfort-as.cz | I12: 125 | J12: 355
A13: 9. | B13: Enerfin plus s.r.o. | C13: Plzeň | D13: Domažlická 116/223, | E13: 318 00 | F13: 377457816 | G13: enerfin@enerfin.cz | H13: http://www.enerfinplus.cz/ | I13: 92 | J13: 360
A14: 10. | B14: ENERGOSTAR Tábor s.r.o. | C14: Tábor | D14: Sedláčkova 1856 | E14: 39002 | F14: 602661810 | G14: info@energostar.cz | H14: http://www.energostar.cz | I14: 93 | J14: 340
M40: Interval prohlídky nebo servisního úkonu | N40: Popis úkonu
M41: 1x týdně (denně) | N41: Vizuální a akustická prohlídka se zaměřením:
N42: - chod ventilátorů, čerpadel, kompresorů, směsovacích ventilů,
N43: - těsnost výměníků a rozvodů.
M44: 1x měsíčně | N44: Vizuální a akustická prohlídka se zaměřením:
N45: - čistota/zanesení výměníků,
N46: - celková hlučnost zařízení,
N47: - ložiska, koncové polohy pohonů,
N48: - komponenty (ventilátory, klínové řemeny, servomotory, zvlhčovače, filtry, výměníky, uzavírací klapy).
M49: 1x za 3 měsíce | N49: Pravidelná údržba se zaměřením:
N50: - protočení armatur,
N51: - vynulování manometrů,
N52: - kontrola a případná výměna filtrů,
N53: - čištění teplosměnných ploch výměníků.
M54: 1x za rok | N54: Servisní prohlídka se zaměřením:
N55: - proplach deskových výměníků saponátovým roztokem,
N56: - velká údržba jednotek zahrnující zejména: ventilátory (mazání ložisek, napínání řemenů), uzavírací klapky (čištění, seřízení hladkého chodu jednotlivých listů, kontrola těsnosti), parní distributor (kontrola, čištění trysek),
N57: - kontrola chladicího zařízení, příp. doplnění chladiva servisním technikem chlazení,
N58: - čištění vzduchovodů a koncových elementů v interiéru i exteriéru (výustky, čisté nástavce, žaluzie, výfukové tvarovky) vlhkým hadříkem jemným mýdlovým roztokem,
N59: - prověření těsnosti tlumicích vložek a pružnosti tlumicího PVC-pásu,
N60: - revize požárních klapek autorizovaným technikem,
N61: - celkový úklid strojoven.
M62: Ve speciálních případech | N62: V čistých prostorech má provozní řád obsahovat časové údaje pro kontrolní měření počtu částic i mikrobiální kontaminace, běžně 1x ročně, u superčistých prostor 1x měsíčně, ve výjimečných případech denně

Sheet Grafy
F97: http://www.ssi.cz/uklidove-sluzby
F99: http://www.revizekontroly.cz/technicka-zarizeni-budov/item/provoz-a-udrzba-vzduchotechniky
F102: http://www.atalian.cz/cisteni-vzduchotechniky
F104: http://www.fbs-fbs.cz/index.php?pg=cenik-sprava-nemovitosti
F107: http://www.hasici-pristroje.net/cenik/
R139: =IF(Titulní!D29<>Grafy!F143,IF(Tabulky!$C$4=7,Grafy!F143,IF(Tabulky!$C$4=8,Grafy!F148,NA())),NA()) -> 
F142: Úklid podlah | H142: Cena za 1 m2
F143: COOL Facillity s.r.o. | G143: Úklidové služby | H143: EuroProfi Clean v.o.s | I143: Ksena.s.r.o. | J143: D&D s.r.o. | K143: DOLEŽAL-DUHA, s. r. o. | L143: David Plecitý | M143: A.W.I.S. | N143: Herakles | O143: VYČISTÍM CZ | P143: Úklidová četa | Q143: AB Prokir spol. s r.o. | R143: RPM Service CZ a.s.
F144: 2 | G144: 2.5 | H144: 1.7 | I144: 3 | J144: 2.5 | K144: 3 | L144: 8 | M144: 7 | N144: 2.8 | O144: 4 | P144: 2.9 | Q144: 10 | R144: 2
F145: 8 | G145: 8.5 | H145: 10.3 | I145: 19.5 | J145: 11.8 | K145: 3.2 | L145: 13.7 | M145: 1 | N145: 3.7 | O145: 0.5 | P145: 5.7 | Q145: 5.5 | R145: 6.3
F147: Úklid sněhu | H147: Cena za 1 m2
F148: Detai cleaning | G148: Komplexní úklid | H148: Dopareal | I148: Šticha a syn s.r.o. | J148: Miroslav Mlezviva | K148: A.W.I.S. | L148: Herakles
F149: 13 | G149: 7 | H149: 8 | I149: 2.4 | J149: 5 | K149: 5 | L149: 3
F150: 21.3 | G150: 10.4 | H150: 13.4 | I150: 11.5 | J150: 26.8 | K150: 1 | L150: 3.7
F153: Graf | H153: =IF(Tabulky!C4=7,Grafy!H142,Grafy!H147) -> Cena za 1 m2 | K153: Vzdálenost KM
F154: =IF(Tabulky!$C$4=7,Grafy!F143,IF(Tabulky!$C$4=8,Grafy!F148,NA())) ->  | G154: =IF(Tabulky!$C$4=7,Grafy!G143,IF(Tabulky!$C$4=8,Grafy!G148,NA())) ->  | H154: =IF(Tabulky!$C$4=7,Grafy!H143,IF(Tabulky!$C$4=8,Grafy!H148,NA())) ->  | I154: =IF(Tabulky!$C$4=7,Grafy!I143,IF(Tabulky!$C$4=8,Grafy!I148,NA())) ->  | J154: =IF(Tabulky!$C$4=7,Grafy!J143,IF(Tabulky!$C$4=8,Grafy!J148,NA())) ->  | K154: =IF(Tabulky!$C$4=7,Grafy!K143,IF(Tabulky!$C$4=8,Grafy!K148,NA())) ->  | L154: =IF(Tabulky!$C$4=7,Grafy!L143,IF(Tabulky!$C$4=8,Grafy!L148,NA())) ->  | M154: =IF(Tabulky!$C$4=7,Grafy!M143,IF(Tabulky!$C$4=8,Grafy!M148,NA())) ->  | N154: =IF(Tabulky!$C$4=7,Grafy!N143,IF(Tabulky!$C$4=8,Grafy!N148,NA())) ->  | O154: =IF(Tabulky!$C$4=7,Grafy!O143,IF(Tabulky!$C$4=8,Grafy!O148,NA())) ->  | P154: =IF(Tabulky!$C$4=7,Grafy!P143,IF(Tabulky!$C$4=8,Grafy!P148,NA())) ->  | Q154: =IF(Tabulky!$C$4=7,Grafy!Q143,IF(Tabulky!$C$4=8,Grafy!Q148,NA())) ->  | R154: =IF(Tabulky!$C$4=7,Grafy!R143,IF(Tabulky!$C$4=8,Grafy!R148,NA())) ->  | U154: =Titulní!D29 -> RPM Service CZ a.s.
F155: =IF(Tabulky!$C$4=7,Grafy!F144,IF(Tabulky!$C$4=8,Grafy!F149,NA())) ->  | G155: =IF(Tabulky!$C$4=7,Grafy!G144,IF(Tabulky!$C$4=8,Grafy!G149,NA())) ->  | H155: =IF(Tabulky!$C$4=7,Grafy!H144,IF(Tabulky!$C$4=8,Grafy!H149,NA())) ->  | I155: =IF(Tabulky!$C$4=7,Grafy!I144,IF(Tabulky!$C$4=8,Grafy!I149,NA())) ->  | J155: =IF(Tabulky!$C$4=7,Grafy!J144,IF(Tabulky!$C$4=8,Grafy!J149,NA())) ->  | K155: =IF(Tabulky!$C$4=7,Grafy!K144,IF(Tabulky!$C$4=8,Grafy!K149,NA())) ->  | L155: =IF(Tabulky!$C$4=7,Grafy!L144,IF(Tabulky!$C$4=8,Grafy!L149,NA())) ->  | M155: =IF(Tabulky!$C$4=7,Grafy!M144,IF(Tabulky!$C$4=8,Grafy!M149,NA())) ->  | N155: =IF(Tabulky!$C$4=7,Grafy!N144,IF(Tabulky!$C$4=8,Grafy!N149,NA())) ->  | O155: =IF(Tabulky!$C$4=7,Grafy!O144,IF(Tabulky!$C$4=8,Grafy!O149,NA())) ->  | P155: =IF(Tabulky!$C$4=7,Grafy!P144,IF(Tabulky!$C$4=8,Grafy!P149,NA())) ->  | Q155: =IF(Tabulky!$C$4=7,Grafy!Q144,IF(Tabulky!$C$4=8,Grafy!Q149,NA())) ->  | R155: =IF(Tabulky!$C$4=7,Grafy!R144,IF(Tabulky!$C$4=8,Grafy!R149,NA())) ->  | U155: =Titulní!D37 -> 6
F156: =IF(Tabulky!$C$4=7,Grafy!F143,IF(Tabulky!$C$4=8,Grafy!F148,NA())) ->  | G156: =IF(Tabulky!$C$4=7,Grafy!G143,IF(Tabulky!$C$4=8,Grafy!G148,NA())) ->  | H156: =IF(Tabulky!$C$4=7,Grafy!H143,IF(Tabulky!$C$4=8,Grafy!H148,NA())) ->  | I156: =IF(Tabulky!$C$4=7,Grafy!I143,IF(Tabulky!$C$4=8,Grafy!I148,NA())) ->  | J156: =IF(Tabulky!$C$4=7,Grafy!J143,IF(Tabulky!$C$4=8,Grafy!J148,NA())) ->  | K156: =IF(Tabulky!$C$4=7,Grafy!K143,IF(Tabulky!$C$4=8,Grafy!K148,NA())) ->  | L156: =IF(Tabulky!$C$4=7,Grafy!L143,IF(Tabulky!$C$4=8,Grafy!L148,NA())) ->  | M156: =IF(Tabulky!$C$4=7,Grafy!M143,IF(Tabulky!$C$4=8,Grafy!M148,NA())) ->  | N156: =IF(Tabulky!$C$4=7,Grafy!N143,IF(Tabulky!$C$4=8,Grafy!N148,NA())) ->  | O156: =IF(Tabulky!$C$4=7,Grafy!O143,IF(Tabulky!$C$4=8,Grafy!O148,NA())) ->  | P156: =IF(Tabulky!$C$4=7,Grafy!P143,IF(Tabulky!$C$4=8,Grafy!P148,NA())) ->  | Q156: =IF(Tabulky!$C$4=7,Grafy!Q143,IF(Tabulky!$C$4=8,Grafy!Q148,NA())) ->  | R156: =IF(Tabulky!$C$4=7,Grafy!R143,IF(Tabulky!$C$4=8,Grafy!R148,NA())) -> 
F157: =IF(Tabulky!$C$4=7,Grafy!F145,IF(Tabulky!$C$4=8,Grafy!F150,NA())) ->  | G157: =IF(Tabulky!$C$4=7,Grafy!G145,IF(Tabulky!$C$4=8,Grafy!G150,NA())) ->  | H157: =IF(Tabulky!$C$4=7,Grafy!H145,IF(Tabulky!$C$4=8,Grafy!H150,NA())) ->  | I157: =IF(Tabulky!$C$4=7,Grafy!I145,IF(Tabulky!$C$4=8,Grafy!I150,NA())) ->  | J157: =IF(Tabulky!$C$4=7,Grafy!J145,IF(Tabulky!$C$4=8,Grafy!J150,NA())) ->  | K157: =IF(Tabulky!$C$4=7,Grafy!K145,IF(Tabulky!$C$4=8,Grafy!K150,NA())) ->  | L157: =IF(Tabulky!$C$4=7,Grafy!L145,IF(Tabulky!$C$4=8,Grafy!L150,NA())) ->  | M157: =IF(Tabulky!$C$4=7,Grafy!M145,IF(Tabulky!$C$4=8,Grafy!M150,NA())) ->  | N157: =IF(Tabulky!$C$4=7,Grafy!N145,IF(Tabulky!$C$4=8,Grafy!N150,NA())) ->  | O157: =IF(Tabulky!$C$4=7,Grafy!O145,IF(Tabulky!$C$4=8,Grafy!O150,NA())) ->  | P157: =IF(Tabulky!$C$4=7,Grafy!P145,IF(Tabulky!$C$4=8,Grafy!P150,NA())) ->  | Q157: =IF(Tabulky!$C$4=7,Grafy!Q145,IF(Tabulky!$C$4=8,Grafy!Q150,NA())) ->  | R157: =IF(Tabulky!$C$4=7,Grafy!R145,IF(Tabulky!$C$4=8,Grafy!R150,NA())) ->  | U157: =Titulní!D36 -> 6.3

Sheet List1
A2: podlahy | B2: Název poskytovatele | C2: Město | D2: Cena služby za 1m2
B3: COOL Facillity s.r.o. | C3: Praha | D3: 2
B4: Úklidové služby | C4: Praha | D4: 2.5
B5: EuroProfi Clean v.o.s | C5: Praha | D5: 1.7
B6: Ksena.s.r.o. | C6: Praha | D6: 3
B7: D&D s.r.o. | C7: Praha | D7: 2.5
B8: DOLEŽAL-DUHA, s. r. o. | C8: Praha | D8: 3 | E8: Praha | F8: =AVERAGE(D3:D15,D24) -> 4.242857143
B9: David Plecitý | C9: Praha | D9: 8 | E9: Plzeň | F9: =AVERAGE(D18,D19,D20,D21,D22) -> 7.4
B10: A.W.I.S. | C10: Praha | D10: 7 | E10: Středočeský kraj | F10: =AVERAGE(D23,D25,D26,D17,D16) -> 12.4
B11: Herakles | C11: Praha | D11: 2.8
B12: VYČISTÍM CZ | C12: Praha | D12: 4
B13: Úklidová četa | C13: Praha | D13: 2.9
B14: AB Prokir spol. s r.o. | C14: Praha | D14: 10
B15: RPM Service CZ a.s. | C15: Praha | D15: 2
B16: INUS Příbram s.r.o. | C16: Příbram | D16: 10
B17: Vanost s.r.o. | C17: Příbram | D17: 19
B18: SvoboDo | C18: Plzeň | D18: 6
B19: Uklid-udrzba-plzen | C19: Plzeň | D19: 12
B20: ÚKLID-PLZEŇ.EU | C20: Mýto | D20: 4
B21: Úklidové služby Plzeň | C21: Plzeň | D21: 4
B22: ÚKLID PRESTO, s.r.o. | C22: Plzeň | D22: 11
B23: CLEAN | C23: České Budějovice | D23: 15
B24: AB Prokir spol. s r.o. | C24: Praha | D24: 8
B25: Andílci s.r.o. | C25: Hradec Králové | D25: 5
B26: Richard Dvořák | C26: České Budějovice | D26: 13
B27: KATEŘINA BETLACHOVÁ | C27: Plzeň | D27: 16
A29: okna
B30: COOL Facillity s.r.o. | C30: Praha | D30: 6
B31: Úklidové služby | C31: Praha | D31: 8
B32: EuroProfi Clean v.o.s | C32: Praha | D32: 11
B33: Ksena.s.r.o. | C33: Praha | D33: 13
B34: D&D s.r.o. | C34: Praha | D34: 10
B35: DOLEŽAL-DUHA, s. r. o. | C35: Praha | D35: 12
B36: David Plecitý | C36: Praha | D36: 10
B37: A.W.I.S. | C37: Praha | D37: 12
B38: Herakles | C38: Praha | D38: 8
B39: VYČISTÍM CZ | C39: Praha | D39: 14
B40: Mytí oken s.r.o. | C40: Praha | D40: 8
B41: Úklidová četa | C41: Praha | D41: 15
B42: AB Prokir spol. s r.o. | C42: Praha | D42: 9.5
B43: RPM Service CZ a.s. | C43: Praha | D43: 6 | E43: Praha | F43: =AVERAGE(D30:D42,D43,D57) -> 10.13333333
B44: INUS Příbram s.r.o. | C44: Příbram | D44: 6 | E44: Plzeň | F44: =AVERAGE(D49,D50,D51,D52,D53,D61) -> 14.75
B45: Gabriela Zetochová | C45: Příbram | D45: 12 | E45: Středočeský | F45: =AVERAGE(D44,D45,D46,D47,D58) -> 11.9
B46: Vanost s.r.o. | C46: Příbram | D46: 13
B47: ALEŠ ZEMAN-úklidové práce | C47: Kladno | D47: 16
B48: Housekeeping s.r.o. | C48: Praha | D48: 10
B49: SvoboDo | C49: Plzeň | D49: 14
B50: Uklid-udrzba-plzen | C50: Plzeň | D50: 5.5
B51: ÚKLID-PLZEŇ.EU | C51: Mýto | D51: 15
B52: Úklidové služby Plzeň | C52: Plzeň | D52: 14
B53: ÚKLID PRESTO, s.r.o. | C53: Plzeň | D53: 16
B54: BOKAS s.r.o. | C54: České Budějovice | D54: 15
B55: Bittner | C55: České Budějovice | D55: 27
B56: CLEAN | C56: České Budějovice | D56: 25
B57: AB Prokir spol. s r.o. | C57: Praha | D57: 9.5
B58: Andílci s.r.o. | C58: Hradec Králové | D58: 12.5
B59: Richard Dvořák | C59: České Budějovice | D59: 23
B60: Bittner | C60: České Budějovice | D60: 27
B61: KATEŘINA BETLACHOVÁ | C61: Plzeň | D61: 24
A64: obklady
